{"text_format":"1","workbook":"xlsx","n_sheets":12,"sheets":["0.Glosario","1.Inicio","2.Sintesis","3.Presupuesto detallado Gasto","3.1 Salidas de Campo","5.Horas de Investigación","4. Viajes","6.Precios Servicios Internos","7. Política de Viajes","Parámetros","7, Viajes técnicos","Hoja3"],"not_rendered":{"charts":0,"images":5,"macros":1,"external_links":0,"defined_names":15,"comments":1,"pivot_tables":0},"unopened":[],"bounds":{"document_bytes":16777216,"sheet_cells":100000,"rows_first":2000,"rows_last":500,"rows_between":2000,"halvings":0,"cell_chars":16384,"cell_head_chars":4096},"cells_cut":0,"cells_raw":0,"read":"whole","date_system":"1900"}

{"sheet":"0.Glosario","index":0,"n_rows":16,"n_cols":3,"rows_kept":16,"cut":false,"hidden":false,"merged":[[11,2,11,3],[12,2,12,3],[13,2,13,3],[14,2,14,3],[15,2,15,3],[10,2,10,3],[6,2,6,3],[7,2,7,3],[5,2,5,3],[8,2,8,3],[9,2,9,3]]}
[]
[]
[null,"GLOSARIO"]
[]
[]
[null,"Item","Descripción"]
[null,"Viajes Técnicos","Son viajes para la recolección de información (toma de muestras, entrevistas, talleres) en Ecuador este rubro puede incluir: Hospedaje, Alimentación, Movilización, Pasajes. \n"]
[null,"Insumos Académicos","Materiales que se utilizarán en los proyectos de investigación en este rubro se incluye: reactivos, materiales, guantes, suministros, copias etc.\nIncluye: bienes menores que no son inventariados de acuerdo a las políticas contables de la Universidad, con un valor menor a $ 100,00 por unidad."]
[null,"Servicios Profesionales","Honorarios por servicios prestados en temas de investigación en este rubro se incluye:  Honorarios por secuenciación (externo), Contrataciones por Servicios Profesionasles "]
[null,"Equipos","Son bienes que son inventariados de acuerdo a las políticas contables de la Universidad, con un valor mayor o igual a $ 100,00 por unidad.  Estos rubros deben ser considerados en la pestaña de Presupuesto Equipos Mayores. (Incluye Licencias de Software)"]
[null,"Servicios de Laboratorio","Servicios prestados por Laboratorios de Investigación, procesamiento de muestras."]
[null,"Gastos de Proyecto - Otros Gastos","Son gastos que no se encuentran en los items anteriores, y que no deben superar el 5% el monto total del proyecto, como participación en conferencias, congresos, seminarios, etc."]
[null,"Salidas de Campo","Son actividades planificadas orientadas a la observación, recolección de datos y verificación de hipótesis en el ambiente natural o social donde ocurre el fenómeno de estudio. Estas salidas deben estar alineadas con los objetivos específicos del proyecto, incluyendo una justificación técnica que explique su importancia para el estudio. No se incluyen viajes internacionales ni viajes por capacitaciones. Deben especificar el destino, número de salidas, número de personas, tipo de transporte, así como clasificar los costos de hospedaje, transporte, alimentación y días estimados de viaje."]
[null,"Congresos","Las salidas a eventos académicos, se manejan mediante una solicitud de participación. Se debe detallar nombre del congreso, lugar, fechas, tipo de participación y costos. Estas salidas serán clasificadas bajo una ponderación basada en la relevancia del evento, impacto en el proyecto, participación y si la publicación será indexada en Scopus. Los gastos se cubrirán según dicho alcance, tras un análisis de la solicitud de participación."]
[null,"Estancias de investigacion","Las salidas por estancias técnicas de investigación son visitas a instituciones o centros especializados para acceder a equipos, técnicas o conocimientos necesarios para el desarrollo del proyecto de investigación. Estas salidas deben estar justificadas y alineadas con los objetivos del proyecto. Solo se permite la participación de una persona, y en caso de ser colaborador de nuestra institución, se consideran un permiso con sueldo, debiendo recuperarse el tiempo según las políticas de Talento y Cultura. Para su aprobación, se requiere presentar un plan de trabajo detallado que justifique la estancia y el porqué de la presencialidad. Y en caso de contar con apoyo económico de alguna entidad externa, se deberá mencionarse como parte del financiamiento externo de la investigación. "]
[null,"Estancias doctorales","Las salidas por estancias doctorales permiten a colaboradores estudiantes de doctorado registrados formalmente en la DGIV/DGGA realizar investigaciones en instituciones internacionales, necesarias para avanzar en su proyecto. Estas estancias deben estar alineadas con los objetivos de la investigación y justificar el acceso a recursos o expertos no disponibles en la institución/país detallado en un plan de trabajo del proyecto. Dichos viajes se consideran un permiso con sueldo, y el tiempo debe recuperarse según las políticas de Talento y Cultura. Y en caso de contar con apoyo económico de alguna entidad externa, se deberá mencionarse como parte del financiamiento externo de la investigación."]

{"sheet":"1.Inicio","index":1,"n_rows":14,"n_cols":3,"rows_kept":14,"cut":false,"hidden":false,"merged":[[6,1,7,1],[6,2,7,2],[6,3,7,3]]}
[]
[null,"MENÚ"]
[]
[null,null,"En este formulario, deberá llenar las casillas del siguiente color:"]
[]
[null,"Item","Descripción"]
[null,"2. Sintesis ","Esta pestaña está diseñada para recopilar la información presupuestaria del proyecto, incluyendo campos clave como el nombre del proyecto, el director a cargo, la duración y el tipo de proyecto."]
[]
[null,"3. Presupuesto detallado","Se deberá llenar cada campo solicitado en los años correctos, si necesita ingresar mas gastos de algún rubro es posible cambiar en otro rubro ya que las celdas tienen un formato de lista. \nObservación: Los viajes que requieran un boleto de avión deberán ser llenado en la pestaña 4"]
[null,"3.1 Salidas de Campo","Pestaña para detallar los gastos de aquellas salidas de campo que se ejecuten con movilización tanto terrestre como fluvial"]
[null,"4. Viajes ","En ese apartado irán aquellos viajes que necesiten la compra de un boleto de avión, se necesitrá información especifica para tener la aprobación de estos. "]
[null,"5. Horas de investigación","Pestaña que contiene la información del personal que trabaje en el proyecto, importante llenar todos los campos que se soliciten para un cálculo correcto del presupuesto "]
[null,"6.Precios Servicios Internos","La pestaña Precios Servicios Internos mostrará una tabla que detalla los precios de los servicios de laboratorio disponibles. Cada fila de la tabla incluirá el nombre del servicio, junto con su precio correspondiente. Esta estructura permitirá consultar rápidamente los costos asociados a los servicios de laboratorio que se ofrecen, facilitando la referencia y el cálculo de presupuestos dentro del proyecto."]
[null,"7.Viáticos","La pestaña Viáticos contendrá una tabla que muestra los precios asociados a los viáticos, tanto para viajes nacionales como internacionales. "]

{"sheet":"2.Sintesis","index":2,"n_rows":37,"n_cols":10,"rows_kept":37,"cut":false,"hidden":false,"merged":[[29,3,29,7],[14,3,14,4],[15,3,15,4],[16,3,16,4],[18,3,18,4],[19,3,19,4],[13,3,13,4],[1,2,1,7],[2,2,2,7],[10,3,10,4],[11,3,11,4],[12,3,12,4],[8,4,8,5]]}
[]
[null,null,"SÍNTESIS DEL PRESUPUESTO SOLICITADO"]
[null,null,"Proyecto de Investigación XVII Convocatoria"]
[]
[null,null,"Nombre del Proyecto:"]
[null,null,"Director del proyecto:"]
[null,null,"Facultad/Escuela y Carrera:"]
[null,null,"Duración del proyecto en meses:"]
[null,null,"Tipo de proyecto:","A","Tipo de proyecto del cual es continuación :",null,"A"]
[null,null,"Proyecto Cofinanciado?:",null,{"$f":"+IF(D10=\"SI\",\"¿Los fondos externos ingresan a la UDLA?\",\"N/A\")","v":"N/A"}]
[null,null,"Recursos materiales Financiados por la Contraparte:",{"$f":"+J37","v":0},null,{"$f":"IFERROR(D11/$D$17,0)","v":0}]
[null,null,"Recursos humanos Financiado por la Contraparte:",{"$f":"+'5.Horas de Investigación'!$S$22","v":0},null,0]
[null,null,"Monto Total Financiado por la Contraparte:",{"$f":"+D11+D12","v":0},null,0,{"$f":"IF(AND(D9=\"C\",D14>0,IFERROR(D13/D14<0.6,FALSE)),\"El financiamiento externo debe representar el 60% del presupuesto total del proyecto\",\"\")","v":""}]
[null,null,"Recursos materiales Financiados por la UDLA:",{"$f":"+J28","v":0},null,0]
[null,null,"Recursos humanos Financiados por la UDLA:",{"$f":"+'5.Horas de Investigación'!$S$21","v":0},null,0]
[null,null,"Monto Total Financiado por la UDLA:",{"$f":"+D14+D15","v":0},null,0]
[null,null,"Monto Total del Proyecto:",{"$f":"+D13+D16","v":0}]
[null,null,"Número de Publicaciones:"]
[null,null,"Costo aproximado por artículo (UDLA):",{"$f":"IF(IFERROR((D16)/D18,0)>15000,\"Debe aumentar el número de publicaciones\",IFERROR((D16)/D18,0))","v":0}]
[null,null,"Costo aproximado por artículo incluido financiamiento externo:",{"$f":"IFERROR((D17)/D18,0)","v":0}]
[]
[]
[null,null,"Años","Viajes técnicos","Insumos","Servicios Profesionales","Equipos","Servicios de Laboratorio","Gastos de Proyecto - Otros Gastos","Total"]
[null,null,2025,{"$f":"SUMIFS('3.1 Salidas de Campo'!M:M,'3.1 Salidas de Campo'!C:C,\"Salidas de campo terrestres \",'3.1 Salidas de Campo'!I:I,\"UDLA\")+SUMIFS('4. Viajes'!H21:H1048576,'4. Viajes'!D21:D1048576,\"UDLA\")","v":0},{"$f":"+SUMIFS('3.Presupuesto detallado Gasto'!$I:$I,'3.Presupuesto detallado Gasto'!$B:$B,'2.Sintesis'!E23,'3.Presupuesto detallado Gasto'!$D:$D,\"UDLA\")","v":0},{"$f":"+SUMIFS('3.Presupuesto detallado Gasto'!$I:$I,'3.Presupuesto detallado Gasto'!$B:$B,'2.Sintesis'!F23,'3.Presupuesto detallado Gasto'!$D:$D,\"UDLA\")","v":0},{"$f":"+SUMIFS('3.Presupuesto detallado Gasto'!$I:$I,'3.Presupuesto detallado Gasto'!$B:$B,'2.Sintesis'!G23,'3.Presupuesto detallado Gasto'!$D:$D,\"UDLA\")","v":0},{"$f":"+SUMIFS('3.Presupuesto detallado Gasto'!$I:$I,'3.Presupuesto detallado Gasto'!$B:$B,'2.Sintesis'!H23,'3.Presupuesto detallado Gasto'!$D:$D,\"UDLA\")","v":0},{"$f":"+SUMIFS('3.Presupuesto detallado Gasto'!$I:$I,'3.Presupuesto detallado Gasto'!$B:$B,'2.Sintesis'!I23,'3.Presupuesto detallado Gasto'!$D:$D,\"UDLA\")","v":0},{"$f":"+SUM(D24:I24)","v":0}]
[null,null,2026,{"$f":"SUMIFS('3.1 Salidas de Campo'!N:N,'3.1 Salidas de Campo'!C:C,\"Salidas de campo terrestres \",'3.1 Salidas de Campo'!I:I,\"UDLA\")+SUMIFS('4. Viajes'!I21:I1048576,'4. Viajes'!D21:D1048576,\"UDLA\")","v":0},{"$f":"+SUMIFS('3.Presupuesto detallado Gasto'!$J:$J,'3.Presupuesto detallado Gasto'!$B:$B,'2.Sintesis'!E$23,'3.Presupuesto detallado Gasto'!$D:$D,\"UDLA\")","v":0},{"$f":"+SUMIFS('3.Presupuesto detallado Gasto'!$J:$J,'3.Presupuesto detallado Gasto'!$B:$B,'2.Sintesis'!F$23,'3.Presupuesto detallado Gasto'!$D:$D,\"UDLA\")","v":0},{"$f":"+SUMIFS('3.Presupuesto detallado Gasto'!$J:$J,'3.Presupuesto detallado Gasto'!$B:$B,'2.Sintesis'!G$23,'3.Presupuesto detallado Gasto'!$D:$D,\"UDLA\")","v":0},{"$f":"+SUMIFS('3.Presupuesto detallado Gasto'!$J:$J,'3.Presupuesto detallado Gasto'!$B:$B,'2.Sintesis'!H$23,'3.Presupuesto detallado Gasto'!$D:$D,\"UDLA\")","v":0},{"$f":"+SUMIFS('3.Presupuesto detallado Gasto'!$J:$J,'3.Presupuesto detallado Gasto'!$B:$B,'2.Sintesis'!I$23,'3.Presupuesto detallado Gasto'!$D:$D,\"UDLA\")","v":0},{"$f":"+SUM(D25:I25)","v":0}]
[null,null,2027,{"$f":"SUMIFS('3.1 Salidas de Campo'!O:O,'3.1 Salidas de Campo'!C:C,\"Salidas de campo terrestres \",'3.1 Salidas de Campo'!I:I,\"UDLA\")+SUMIFS('4. Viajes'!J21:J1048576,'4. Viajes'!D21:D1048576,\"UDLA\")","v":0},{"$f":"+SUMIFS('3.Presupuesto detallado Gasto'!$K:$K,'3.Presupuesto detallado Gasto'!$B:$B,'2.Sintesis'!E$23,'3.Presupuesto detallado Gasto'!$D:$D,\"UDLA\")","v":0},{"$f":"+SUMIFS('3.Presupuesto detallado Gasto'!$K:$K,'3.Presupuesto detallado Gasto'!$B:$B,'2.Sintesis'!F$23,'3.Presupuesto detallado Gasto'!$D:$D,\"UDLA\")","v":0},{"$f":"+SUMIFS('3.Presupuesto detallado Gasto'!$K:$K,'3.Presupuesto detallado Gasto'!$B:$B,'2.Sintesis'!G$23,'3.Presupuesto detallado Gasto'!$D:$D,\"UDLA\")","v":0},{"$f":"+SUMIFS('3.Presupuesto detallado Gasto'!$K:$K,'3.Presupuesto detallado Gasto'!$B:$B,'2.Sintesis'!H$23,'3.Presupuesto detallado Gasto'!$D:$D,\"UDLA\")","v":0},{"$f":"+SUMIFS('3.Presupuesto detallado Gasto'!$K:$K,'3.Presupuesto detallado Gasto'!$B:$B,'2.Sintesis'!I$23,'3.Presupuesto detallado Gasto'!$D:$D,\"UDLA\")","v":0},{"$f":"+SUM(D26:I26)","v":0}]
[null,null,2028,{"$f":"SUMIFS('3.1 Salidas de Campo'!P:P,'3.1 Salidas de Campo'!C:C,\"Salidas de campo terrestres \",'3.1 Salidas de Campo'!I:I,\"UDLA\")+SUMIFS('4. Viajes'!K21:K1048576,'4. Viajes'!D21:D1048576,\"UDLA\")","v":0},{"$f":"+SUMIFS('3.Presupuesto detallado Gasto'!$L:$L,'3.Presupuesto detallado Gasto'!$B:$B,'2.Sintesis'!E$23,'3.Presupuesto detallado Gasto'!$D:$D,\"UDLA\")","v":0},{"$f":"+SUMIFS('3.Presupuesto detallado Gasto'!$L:$L,'3.Presupuesto detallado Gasto'!$B:$B,'2.Sintesis'!F$23,'3.Presupuesto detallado Gasto'!$D:$D,\"UDLA\")","v":0},{"$f":"+SUMIFS('3.Presupuesto detallado Gasto'!$L:$L,'3.Presupuesto detallado Gasto'!$B:$B,'2.Sintesis'!G$23,'3.Presupuesto detallado Gasto'!$D:$D,\"UDLA\")","v":0},{"$f":"+SUMIFS('3.Presupuesto detallado Gasto'!$L:$L,'3.Presupuesto detallado Gasto'!$B:$B,'2.Sintesis'!H$23,'3.Presupuesto detallado Gasto'!$D:$D,\"UDLA\")","v":0},{"$f":"+SUMIFS('3.Presupuesto detallado Gasto'!$L:$L,'3.Presupuesto detallado Gasto'!$B:$B,'2.Sintesis'!I$23,'3.Presupuesto detallado Gasto'!$D:$D,\"UDLA\")","v":0},{"$f":"+SUM(D27:I27)","v":0}]
[null,null,"Total Presupuesto General",{"$f":"+SUM(D24:D27)","v":0},0,0,0,0,0,{"$f":"SUM(J24:J27)","v":0}]
[]
[null,null,"PRESUPUESTO ANUAL EXTERNO",{"$f":"+IF(J37=D11,\" \",\"Revise la pestaña, existe un error \")","v":" "}]
[]
[null,null,"Años","Viajes técnicos","Insumos","Servicios Profesionales","Equipos","Servicios de Laboratorio","Gastos de Proyecto - Otros Gastos","Total"]
[null,null,2025,{"$f":"SUMIFS('3.1 Salidas de Campo'!M:M,'3.1 Salidas de Campo'!C:C,\"Salidas de campo terrestres \",'3.1 Salidas de Campo'!I:I,\"Externo\")+SUMIFS('4. Viajes'!H21:H1048576,'4. Viajes'!D21:D1048576,\"Externo\")","v":0},{"$f":"+SUMIFS('3.Presupuesto detallado Gasto'!$I:$I,'3.Presupuesto detallado Gasto'!$B:$B,'2.Sintesis'!E$23,'3.Presupuesto detallado Gasto'!$D:$D,\"Externo\")","v":0},{"$f":"+SUMIFS('3.Presupuesto detallado Gasto'!$I:$I,'3.Presupuesto detallado Gasto'!$B:$B,'2.Sintesis'!F$23,'3.Presupuesto detallado Gasto'!$D:$D,\"Externo\")","v":0},{"$f":"+SUMIFS('3.Presupuesto detallado Gasto'!$I:$I,'3.Presupuesto detallado Gasto'!$B:$B,'2.Sintesis'!G$23,'3.Presupuesto detallado Gasto'!$D:$D,\"Externo\")","v":0},{"$f":"+SUMIFS('3.Presupuesto detallado Gasto'!$I:$I,'3.Presupuesto detallado Gasto'!$B:$B,'2.Sintesis'!H$23,'3.Presupuesto detallado Gasto'!$D:$D,\"Externo\")","v":0},{"$f":"+SUMIFS('3.Presupuesto detallado Gasto'!$I:$I,'3.Presupuesto detallado Gasto'!$B:$B,'2.Sintesis'!I$23,'3.Presupuesto detallado Gasto'!$D:$D,\"Externo\")","v":0},{"$f":"+SUM(D33:I33)","v":0}]
[null,null,2026,{"$f":"SUMIFS('3.1 Salidas de Campo'!N:N,'3.1 Salidas de Campo'!C:C,\"Salidas de campo terrestres \",'3.1 Salidas de Campo'!I:I,\"Externo\")+SUMIFS('4. Viajes'!I21:I1048576,'4. Viajes'!D21:D1048576,\"Externo\")","v":0},{"$f":"+SUMIFS('3.Presupuesto detallado Gasto'!$J:$J,'3.Presupuesto detallado Gasto'!$B:$B,'2.Sintesis'!E$23,'3.Presupuesto detallado Gasto'!$D:$D,\"Externo\")","v":0},{"$f":"+SUMIFS('3.Presupuesto detallado Gasto'!$J:$J,'3.Presupuesto detallado Gasto'!$B:$B,'2.Sintesis'!F$23,'3.Presupuesto detallado Gasto'!$D:$D,\"Externo\")","v":0},{"$f":"+SUMIFS('3.Presupuesto detallado Gasto'!$J:$J,'3.Presupuesto detallado Gasto'!$B:$B,'2.Sintesis'!G$23,'3.Presupuesto detallado Gasto'!$D:$D,\"Externo\")","v":0},{"$f":"+SUMIFS('3.Presupuesto detallado Gasto'!$J:$J,'3.Presupuesto detallado Gasto'!$B:$B,'2.Sintesis'!H$23,'3.Presupuesto detallado Gasto'!$D:$D,\"Externo\")","v":0},{"$f":"+SUMIFS('3.Presupuesto detallado Gasto'!$J:$J,'3.Presupuesto detallado Gasto'!$B:$B,'2.Sintesis'!I$23,'3.Presupuesto detallado Gasto'!$D:$D,\"Externo\")","v":0},{"$f":"+SUM(D34:I34)","v":0}]
[null,null,2027,{"$f":"SUMIFS('3.1 Salidas de Campo'!O:O,'3.1 Salidas de Campo'!C:C,\"Salidas de campo terrestres \",'3.1 Salidas de Campo'!I:I,\"Externo\")+SUMIFS('4. Viajes'!J21:J1048576,'4. Viajes'!D21:D1048576,\"Externo\")","v":0},{"$f":"+SUMIFS('3.Presupuesto detallado Gasto'!$K:$K,'3.Presupuesto detallado Gasto'!$B:$B,'2.Sintesis'!E$23,'3.Presupuesto detallado Gasto'!$D:$D,\"Externo\")","v":0},{"$f":"+SUMIFS('3.Presupuesto detallado Gasto'!$K:$K,'3.Presupuesto detallado Gasto'!$B:$B,'2.Sintesis'!F$23,'3.Presupuesto detallado Gasto'!$D:$D,\"Externo\")","v":0},{"$f":"+SUMIFS('3.Presupuesto detallado Gasto'!$K:$K,'3.Presupuesto detallado Gasto'!$B:$B,'2.Sintesis'!G$23,'3.Presupuesto detallado Gasto'!$D:$D,\"Externo\")","v":0},{"$f":"+SUMIFS('3.Presupuesto detallado Gasto'!$K:$K,'3.Presupuesto detallado Gasto'!$B:$B,'2.Sintesis'!H$23,'3.Presupuesto detallado Gasto'!$D:$D,\"Externo\")","v":0},{"$f":"+SUMIFS('3.Presupuesto detallado Gasto'!$K:$K,'3.Presupuesto detallado Gasto'!$B:$B,'2.Sintesis'!I$23,'3.Presupuesto detallado Gasto'!$D:$D,\"Externo\")","v":0},{"$f":"+SUM(D35:I35)","v":0}]
[null,null,2028,{"$f":"SUMIFS('3.1 Salidas de Campo'!P:P,'3.1 Salidas de Campo'!C:C,\"Salidas de campo terrestres \",'3.1 Salidas de Campo'!I:I,\"Externo\")+SUMIFS('4. Viajes'!K21:K1048576,'4. Viajes'!D21:D1048576,\"Externo\")","v":0},{"$f":"+SUMIFS('3.Presupuesto detallado Gasto'!$L:$L,'3.Presupuesto detallado Gasto'!$B:$B,'2.Sintesis'!E$23,'3.Presupuesto detallado Gasto'!$D:$D,\"Externo\")","v":0},{"$f":"+SUMIFS('3.Presupuesto detallado Gasto'!$L:$L,'3.Presupuesto detallado Gasto'!$B:$B,'2.Sintesis'!F$23,'3.Presupuesto detallado Gasto'!$D:$D,\"Externo\")","v":0},{"$f":"+SUMIFS('3.Presupuesto detallado Gasto'!$L:$L,'3.Presupuesto detallado Gasto'!$B:$B,'2.Sintesis'!G$23,'3.Presupuesto detallado Gasto'!$D:$D,\"Externo\")","v":0},{"$f":"+SUMIFS('3.Presupuesto detallado Gasto'!$L:$L,'3.Presupuesto detallado Gasto'!$B:$B,'2.Sintesis'!H$23,'3.Presupuesto detallado Gasto'!$D:$D,\"Externo\")","v":0},{"$f":"+SUMIFS('3.Presupuesto detallado Gasto'!$L:$L,'3.Presupuesto detallado Gasto'!$B:$B,'2.Sintesis'!I$23,'3.Presupuesto detallado Gasto'!$D:$D,\"Externo\")","v":0},{"$f":"+SUM(D36:I36)","v":0}]
[null,null,"Total Presupuesto General",{"$f":"+SUM(D33:D36)","v":0},0,0,0,0,0,{"$f":"+SUM(D37:I37)","v":0}]

{"sheet":"3.Presupuesto detallado Gasto","index":3,"n_rows":103,"n_cols":13,"rows_kept":103,"cut":false,"hidden":false,"merged":[[4,1,5,1]]}
[]
[null,null,null,null,"UDLA","Externo"]
[]
[null,null,null,2025,2026,2027,2028]
[null,"Presupuesto detallado",{"$f":"+Parámetros!B4 & \":\"","v":"Servicios Profesionales:"},{"$f":"SUMIF($B$14:$B$103,Parámetros!$B$4,I14:I103)","v":0},{"$f":"SUMIF($B$14:$B$103,Parámetros!$B$4,J14:J103)","v":0},{"$f":"SUMIF($B$14:$B$103,Parámetros!$B$4,K14:K103)","v":0},{"$f":"SUMIF($B$14:$B$103,Parámetros!$B$4,L14:L103)","v":0},"Total Presupuesto 2025:",{"$f":"IF('2.Sintesis'!D9=\"A\",\n    IF(SUM(I$13:I$1048576)<=30000,\n        SUM(I$13:I$1048576),\n        \"Error, el presupuesto excede los $30,000.00 por año\"),\n    IF('2.Sintesis'!D9=\"B\",\n        IF(SUM(I$14:L$1048576)<=15000,\n            SUM(I$13:I$1048576),\n            \"Error, el presupuesto excede los $15,000.00\"),\n        IF(AND('2.Sintesis'!D9=\"D\",'2.Sintesis'!G9=\"A\"),\n            IF(SUM('3.Presupuesto detallado Gasto'!I14:L126)>10000,\n                \"Error, el presupuesto excede los  $10,000.00\",\n                SUM('3.Presupuesto detallado Gasto'!I14:L126)),\n            IF(AND('2.Sintesis'!D9=\"D\",'2.Sintesis'!G9=\"B\"),\n                IF(SUM('3.Presupuesto detallado Gasto'!I14:L103)>5000,\n                    \"Error, el presupuesto excede los  $5,000.00\",\n                    SUM('3.Presupuesto detallado Gasto'!I14:L103)),\n                0))))","v":0}]
[null,null,{"$f":"+Parámetros!B5 & \":\"","v":"Equipos:"},{"$f":"SUMIF($B$14:$B$103,Parámetros!$B$5,I13:I102)","v":0},{"$f":"SUMIF($B$14:$B$103,Parámetros!$B$5,J13:J102)","v":0},{"$f":"SUMIF($B$14:$B$103,Parámetros!$B$5,K13:K102)","v":0},{"$f":"SUMIF($B$14:$B$103,Parámetros!$B$5,L13:L102)","v":0},"Total Presupuesto 2026:",{"$f":"IF('2.Sintesis'!D9=\"A\",\n    IF(SUM(J$13:J$1048576)<=30000,\n        SUM(J$13:J$1048576),\n        \"Error, el presupuesto excede los $30,000.00 por año\"),\n    IF('2.Sintesis'!D9=\"B\",\n        IF(SUM(I$14:L$1048576)<=15000,\n            SUM(J$13:J$1048576),\n            \"Error, el presupuesto excede los $15,000.00\"),\n        IF(AND('2.Sintesis'!D9=\"D\",'2.Sintesis'!G9=\"A\"),\n            IF(SUM('3.Presupuesto detallado Gasto'!I14:L126)>10000,\n                \"Error, el presupuesto excede los  $10,000.00\",\n                SUM('3.Presupuesto detallado Gasto'!I14:L126)),\n            IF(AND('2.Sintesis'!D9=\"D\",'2.Sintesis'!G9=\"B\"),\n                IF(SUM('3.Presupuesto detallado Gasto'!I14:L103)>5000,\n                    \"Error, el presupuesto excede los  $5,000.00\",\n                    SUM('3.Presupuesto detallado Gasto'!I14:L103)),\n                0))))","v":0}]
[null,null,{"$f":"+Parámetros!B6 & \":\"","v":"Gastos de Proyecto - Otros Gastos:"},{"$f":"SUMIF($B$14:$B$103,Parámetros!$B$6,I13:I102)","v":0},{"$f":"SUMIF($B$14:$B$103,Parámetros!$B$6,J13:J102)","v":0},{"$f":"SUMIF($B$14:$B$103,Parámetros!$B$6,K13:K102)","v":0},{"$f":"SUMIF($B$14:$B$103,Parámetros!$B$6,L13:L102)","v":0},"Total Presupuesto 2027:",{"$f":"IF('2.Sintesis'!D9=\"A\",\n    IF(SUM(K$13:K$1048576)<=30000,\n        SUM(K$13:K$1048576),\n        \"Error, el presupuesto excede los $30,000.00 por año\"),\n    IF('2.Sintesis'!D9=\"B\",\n        IF(SUM(I$14:L$1048576)<=15000,\n            SUM(K$13:K$1048576),\n            \"Error, el presupuesto excede los $15,000.00\"),\n        IF(AND('2.Sintesis'!D9=\"D\",'2.Sintesis'!G9=\"A\"),\n            IF(SUM('3.Presupuesto detallado Gasto'!I14:L126)>10000,\n                \"Error, el presupuesto excede los  $10,000.00\",\n                SUM('3.Presupuesto detallado Gasto'!I14:L126)),\n            IF(AND('2.Sintesis'!D9=\"D\",'2.Sintesis'!G9=\"B\"),\n                IF(SUM('3.Presupuesto detallado Gasto'!I14:L103)>5000,\n                    \"Error, el presupuesto excede los  $5,000.00\",\n                    SUM('3.Presupuesto detallado Gasto'!I14:L103)),\n                0))))","v":0}]
[null,null,{"$f":"+Parámetros!B7 & \":\"","v":"Servicios de Laboratorio:"},{"$f":"SUMIF($B$14:$B$103,Parámetros!$B$7,I13:I102)","v":0},{"$f":"SUMIF($B$14:$B$103,Parámetros!$B$7,J13:J102)","v":0},{"$f":"SUMIF($B$14:$B$103,Parámetros!$B$7,K13:K102)","v":0},{"$f":"SUMIF($B$14:$B$103,Parámetros!$B$7,L13:L102)","v":0},"Total Presupuesto 2028:",{"$f":"IF('2.Sintesis'!D9=\"A\",\n    IF(SUM(L$13:L$1048576)<=30000,\n        SUM(L$13:L$1048576),\n        \"Error, el presupuesto excede los $30,000.00 por año\"),\n    IF('2.Sintesis'!D9=\"B\",\n        IF(SUM(I$14:L$1048576)<=15000,\n            SUM(L$13:L$1048576),\n            \"Error, el presupuesto excede los $15,000.00\"),\n        IF(AND('2.Sintesis'!D9=\"D\",'2.Sintesis'!G9=\"A\"),\n            IF(SUM('3.Presupuesto detallado Gasto'!I14:L126)>10000,\n                \"Error, el presupuesto excede los  $10,000.00\",\n                SUM('3.Presupuesto detallado Gasto'!I14:L126)),\n            IF(AND('2.Sintesis'!D9=\"D\",'2.Sintesis'!G9=\"B\"),\n                IF(SUM('3.Presupuesto detallado Gasto'!I14:L103)>5000,\n                    \"Error, el presupuesto excede los  $5,000.00\",\n                    SUM('3.Presupuesto detallado Gasto'!I14:L103)),\n                0))))","v":0}]
[null,null,{"$f":"+Parámetros!B8 & \":\"","v":"Insumos:"},{"$f":"SUMIF($B$14:$B$103,Parámetros!$B$8,I13:I102)","v":0},{"$f":"SUMIF($B$14:$B$103,Parámetros!$B$8,J13:J102)","v":0},{"$f":"SUMIF($B$14:$B$103,Parámetros!$B$8,K13:K102)","v":0},{"$f":"SUMIF($B$14:$B$103,Parámetros!$B$8,L13:L102)","v":0}]
[]
[]
[null,"Escoger el tipo de gasto","Breve explicación del gasto","UDLA/Externo","Cantidad","Costo unitario","Total","Validador","Valor total para el año 2025","Valor total para el año 2026","Valor total para el año 2027","Valor total para el año 2028","Suma del presupuesto de cada año"]
[null,"Elija el Rubro ","Descripción del gasto","Fuente de Financiamiento","Cantidad Requerida","Costo Unitario","Presupuesto Solicitado Total","Comntario","Año 2025","Año 2026","Año 2027","Año 2028","Gran Total"]
[null,"Servicios Profesionales",null,"UDLA",null,0,{"$f":"+E14*F14","v":0},{"$f":"+IF(F14*E14=SUM(I14:L14),\"Presupuesto cuadrado columna 'H' y'M'\",\"Por favor revisar, presupuesto descuadrado columna 'H' y'M'\")","v":"Presupuesto cuadrado columna 'H' y'M'"},null,null,null,null,{"$f":"+SUM(I14:L14)","v":0}]
[null,"Servicios Profesionales",null,"UDLA",null,0,{"$f":"+E15*F15","v":0},"Presupuesto cuadrado columna 'H' y'M'",null,null,null,null,{"$f":"+SUM(I15:L15)","v":0}]
[null,"Servicios Profesionales",null,"UDLA",null,0,0,"Presupuesto cuadrado columna 'H' y'M'",null,null,null,null,0]
[null,"Servicios Profesionales",null,"UDLA",null,0,0,"Presupuesto cuadrado columna 'H' y'M'",null,null,null,null,0]
[null,"Servicios Profesionales",null,"UDLA",null,0,{"$f":"+E18*F18","v":0},"Presupuesto cuadrado columna 'H' y'M'",null,null,null,null,0]
[null,"Servicios Profesionales",null,"UDLA",null,0,0,"Presupuesto cuadrado columna 'H' y'M'",null,null,null,null,0]
[null,"Servicios Profesionales",null,"UDLA",null,0,0,"Presupuesto cuadrado columna 'H' y'M'",null,null,null,null,0]
[null,"Servicios Profesionales",null,"UDLA",null,0,0,"Presupuesto cuadrado columna 'H' y'M'",null,null,null,null,0]
[null,"Servicios Profesionales",null,"UDLA",null,0,0,"Presupuesto cuadrado columna 'H' y'M'",null,null,null,null,0]
[null,"Servicios Profesionales",null,"UDLA",null,0,0,"Presupuesto cuadrado columna 'H' y'M'",null,null,null,null,0]
[null,"Servicios Profesionales",null,"UDLA",null,0,{"$f":"+E24*F24","v":0},"Presupuesto cuadrado columna 'H' y'M'",null,null,null,null,{"$f":"+SUM(I24:L24)","v":0}]
[null,"Servicios Profesionales",null,"UDLA",null,0,0,"Presupuesto cuadrado columna 'H' y'M'",null,null,null,null,0]
[null,"Servicios Profesionales",null,"UDLA",null,0,0,"Presupuesto cuadrado columna 'H' y'M'",null,null,null,null,0]
[null,"Servicios Profesionales",null,"UDLA",null,0,0,"Presupuesto cuadrado columna 'H' y'M'",null,null,null,null,0]
[null,"Servicios Profesionales",null,"UDLA",null,0,0,"Presupuesto cuadrado columna 'H' y'M'",null,null,null,null,0]
[null,"Servicios Profesionales",null,"UDLA",null,0,0,"Presupuesto cuadrado columna 'H' y'M'",null,null,null,null,0]
[null,"Servicios Profesionales",null,"UDLA",null,0,0,"Presupuesto cuadrado columna 'H' y'M'",null,null,null,null,0]
[null,"Servicios Profesionales",null,"UDLA",null,0,0,"Presupuesto cuadrado columna 'H' y'M'",null,null,null,null,0]
[null,"Servicios Profesionales",null,"UDLA",null,0,0,"Presupuesto cuadrado columna 'H' y'M'",null,null,null,null,0]
[null,"Servicios Profesionales",null,"UDLA",null,0,0,"Presupuesto cuadrado columna 'H' y'M'",null,null,null,null,0]
[null,"Servicios Profesionales",null,"UDLA",null,0,0,"Presupuesto cuadrado columna 'H' y'M'",null,null,null,null,{"$f":"+SUM(I34:L34)","v":0}]
[null,"Equipos",null,"UDLA",null,0,0,"Presupuesto cuadrado columna 'H' y'M'",null,null,null,null,0]
[null,"Equipos",null,"UDLA",null,0,0,"Presupuesto cuadrado columna 'H' y'M'",null,null,null,null,0]
[null,"Equipos",null,"UDLA",null,0,0,"Presupuesto cuadrado columna 'H' y'M'",null,null,null,null,0]
[null,"Equipos",null,"UDLA",null,0,0,"Presupuesto cuadrado columna 'H' y'M'",null,null,null,null,0]
[null,"Equipos",null,"UDLA",null,0,0,"Presupuesto cuadrado columna 'H' y'M'",null,null,null,null,0]
[null,"Equipos",null,"UDLA",null,0,0,"Presupuesto cuadrado columna 'H' y'M'",null,null,null,null,0]
[null,"Equipos",null,"UDLA",null,0,0,"Presupuesto cuadrado columna 'H' y'M'",null,null,null,null,0]
[null,"Equipos",null,"UDLA",null,0,0,"Presupuesto cuadrado columna 'H' y'M'",null,null,null,null,0]
[null,"Equipos",null,"UDLA",null,0,0,"Presupuesto cuadrado columna 'H' y'M'",null,null,null,null,0]
[null,"Equipos",null,"UDLA",null,0,0,"Presupuesto cuadrado columna 'H' y'M'",null,null,null,null,0]
[null,"Gastos de Proyecto - Otros Gastos",null,"UDLA",null,0,0,"Presupuesto cuadrado columna 'H' y'M'",null,null,null,null,0]
[null,"Gastos de Proyecto - Otros Gastos",null,"UDLA",null,0,0,{"$f":"+IF(F46*E46=SUM(I46:L46),\"Presupuesto cuadrado columna 'H' y'M'\",\"Por favor revisar, presupuesto descuadrado columna 'H' y'M'\")","v":"Presupuesto cuadrado columna 'H' y'M'"},null,null,null,null,0]
[null,"Gastos de Proyecto - Otros Gastos",null,"UDLA",null,0,0,"Presupuesto cuadrado columna 'H' y'M'",null,null,null,null,0]
[null,"Gastos de Proyecto - Otros Gastos",null,"UDLA",null,0,0,"Presupuesto cuadrado columna 'H' y'M'",null,null,null,null,0]
[null,"Gastos de Proyecto - Otros Gastos",null,"UDLA",null,0,0,"Presupuesto cuadrado columna 'H' y'M'",null,null,null,null,0]
[null,"Gastos de Proyecto - Otros Gastos",null,"UDLA",null,0,0,"Presupuesto cuadrado columna 'H' y'M'",null,null,null,null,0]
[null,"Gastos de Proyecto - Otros Gastos",null,"UDLA",null,0,0,"Presupuesto cuadrado columna 'H' y'M'",null,null,null,null,0]
[null,"Gastos de Proyecto - Otros Gastos",null,"UDLA",null,0,0,"Presupuesto cuadrado columna 'H' y'M'",null,null,null,null,0]
[null,"Gastos de Proyecto - Otros Gastos",null,"UDLA",null,0,0,"Presupuesto cuadrado columna 'H' y'M'",null,null,null,null,0]
[null,"Gastos de Proyecto - Otros Gastos",null,"UDLA",null,0,0,"Presupuesto cuadrado columna 'H' y'M'",null,null,null,null,0]
[null,"Servicios de Laboratorio",null,"UDLA",null,0,0,"Presupuesto cuadrado columna 'H' y'M'",null,null,null,null,0]
[null,"Servicios de Laboratorio",null,"UDLA",null,0,0,"Presupuesto cuadrado columna 'H' y'M'",null,null,null,null,0]
[null,"Servicios de Laboratorio",null,"UDLA",null,0,0,"Presupuesto cuadrado columna 'H' y'M'",null,null,null,null,0]
[null,"Servicios de Laboratorio",null,"UDLA",null,0,0,"Presupuesto cuadrado columna 'H' y'M'",null,null,null,null,0]
[null,"Servicios de Laboratorio",null,"UDLA",null,0,0,"Presupuesto cuadrado columna 'H' y'M'",null,null,null,null,0]
[null,"Servicios de Laboratorio",null,"UDLA",null,0,0,"Presupuesto cuadrado columna 'H' y'M'",null,null,null,null,0]
[null,"Servicios de Laboratorio",null,"UDLA",null,0,0,"Presupuesto cuadrado columna 'H' y'M'",null,null,null,null,0]
[null,"Servicios de Laboratorio",null,"UDLA",null,0,0,"Presupuesto cuadrado columna 'H' y'M'",null,null,null,null,0]
[null,"Servicios de Laboratorio",null,"UDLA",null,0,0,"Presupuesto cuadrado columna 'H' y'M'",null,null,null,null,0]
[null,"Servicios de Laboratorio",null,"UDLA",null,0,0,"Presupuesto cuadrado columna 'H' y'M'",null,null,null,null,0]
[null,"Insumos",null,"UDLA",null,0,0,"Presupuesto cuadrado columna 'H' y'M'",null,null,null,null,0]
[null,"Insumos",null,"UDLA",null,0,0,"Presupuesto cuadrado columna 'H' y'M'",null,null,null,null,0]
[null,"Insumos",null,"UDLA",null,0,0,"Presupuesto cuadrado columna 'H' y'M'",null,null,null,null,0]
[null,"Insumos",null,"UDLA",null,0,0,"Presupuesto cuadrado columna 'H' y'M'",null,null,null,null,0]
[null,"Insumos",null,"UDLA",null,0,0,"Presupuesto cuadrado columna 'H' y'M'",null,null,null,null,0]
[null,"Insumos",null,"UDLA",null,0,0,"Presupuesto cuadrado columna 'H' y'M'",null,null,null,null,0]
[null,"Insumos",null,"UDLA",null,0,0,"Presupuesto cuadrado columna 'H' y'M'",null,null,null,null,0]
[null,"Insumos",null,"UDLA",null,0,0,"Presupuesto cuadrado columna 'H' y'M'",null,null,null,null,0]
[null,"Insumos",null,"UDLA",null,0,0,"Presupuesto cuadrado columna 'H' y'M'",null,null,null,null,0]
[null,"Insumos",null,"UDLA",null,0,0,"Presupuesto cuadrado columna 'H' y'M'",null,null,null,null,0]
[null,"Insumos",null,"UDLA",null,0,0,"Presupuesto cuadrado columna 'H' y'M'",null,null,null,null,0]
[null,"Insumos",null,"UDLA",null,0,{"$f":"+E76*F76","v":0},"Presupuesto cuadrado columna 'H' y'M'",null,null,null,null,0]
[null,"Insumos",null,"UDLA",null,0,0,"Presupuesto cuadrado columna 'H' y'M'",null,null,null,null,0]
[null,"Insumos",null,"UDLA",null,0,0,{"$f":"+IF(F78*E78=SUM(I78:L78),\"Presupuesto cuadrado columna 'H' y'M'\",\"Por favor revisar, presupuesto descuadrado columna 'H' y'M'\")","v":"Presupuesto cuadrado columna 'H' y'M'"},null,null,null,null,0]
[null,"Insumos",null,"UDLA",null,0,0,"Presupuesto cuadrado columna 'H' y'M'",null,null,null,null,0]
[null,"Insumos",null,"UDLA",null,0,0,"Presupuesto cuadrado columna 'H' y'M'",null,null,null,null,0]
[null,"Insumos",null,"UDLA",null,0,0,"Presupuesto cuadrado columna 'H' y'M'",null,null,null,null,0]
[null,"Insumos",null,"UDLA",null,0,{"$f":"+E82*F82","v":0},"Presupuesto cuadrado columna 'H' y'M'",null,null,null,null,{"$f":"+SUM(I82:L82)","v":0}]
[null,"Insumos",null,"UDLA",null,0,0,"Presupuesto cuadrado columna 'H' y'M'",null,null,null,null,0]
[null,"Insumos",null,"UDLA",null,0,0,"Presupuesto cuadrado columna 'H' y'M'",null,null,null,null,0]
[null,"Insumos",null,"Externo",null,0,0,"Presupuesto cuadrado columna 'H' y'M'",null,null,null,null,0]
[null,"Insumos",null,"UDLA",null,0,0,"Presupuesto cuadrado columna 'H' y'M'",null,null,null,null,0]
[null,"Insumos",null,"UDLA",null,0,0,"Presupuesto cuadrado columna 'H' y'M'",null,null,null,null,0]
[null,"Insumos",null,"UDLA",null,0,0,"Presupuesto cuadrado columna 'H' y'M'",null,null,null,null,0]
[null,"Insumos",null,"UDLA",null,0,0,"Presupuesto cuadrado columna 'H' y'M'",null,null,null,null,0]
[null,"Insumos",null,"UDLA",null,0,0,"Presupuesto cuadrado columna 'H' y'M'",null,null,null,null,0]
[null,"Insumos",null,"UDLA",null,0,0,"Presupuesto cuadrado columna 'H' y'M'",null,null,null,null,0]
[null,"Insumos",null,"UDLA",null,0,0,"Presupuesto cuadrado columna 'H' y'M'",null,null,null,null,0]
[null,"Insumos",null,"UDLA",null,0,0,"Presupuesto cuadrado columna 'H' y'M'",null,null,null,null,0]
[null,"Insumos",null,"UDLA",null,0,{"$f":"+E94*F94","v":0},"Presupuesto cuadrado columna 'H' y'M'",null,null,null,null,{"$f":"+SUM(I94:L94)","v":0}]
[null,"Insumos",null,"UDLA",null,0,{"$f":"+E95*F95","v":0},"Presupuesto cuadrado columna 'H' y'M'",null,null,null,null,{"$f":"+SUM(I95:L95)","v":0}]
[null,"Insumos",null,"UDLA",null,0,{"$f":"+E96*F96","v":0},"Presupuesto cuadrado columna 'H' y'M'",null,null,null,null,{"$f":"+SUM(I96:L96)","v":0}]
[null,"Insumos",null,"UDLA",null,0,{"$f":"+E97*F97","v":0},"Presupuesto cuadrado columna 'H' y'M'",null,null,null,null,{"$f":"+SUM(I97:L97)","v":0}]
[null,"Insumos",null,"UDLA",null,0,0,"Presupuesto cuadrado columna 'H' y'M'",null,null,null,null,0]
[null,"Insumos",null,"UDLA",null,0,0,"Presupuesto cuadrado columna 'H' y'M'",null,null,null,null,0]
[null,"Insumos",null,"UDLA",null,0,0,"Presupuesto cuadrado columna 'H' y'M'",null,null,null,null,0]
[null,"Insumos",null,"UDLA",null,0,0,"Presupuesto cuadrado columna 'H' y'M'",null,null,null,null,0]
[null,"Insumos",null,"UDLA",null,0,0,"Presupuesto cuadrado columna 'H' y'M'",null,null,null,null,0]
[null,"Insumos",null,"UDLA",null,0,0,"Presupuesto cuadrado columna 'H' y'M'",null,null,null,null,0]

{"sheet":"3.1 Salidas de Campo","index":4,"n_rows":71,"n_cols":17,"rows_kept":71,"cut":false,"hidden":false,"merged":[]}
[]
[null,null,null,null,null,null,null,null,null,"Externo"]
[]
[null,null,"Cuantas salidas de campo va a realziar ","Quince (15)"]
[null,null,"Detalle de costos unitarios "]
[null,null,"Transporte ","El valor total de trasporte se calcula de la multiplicación de número de personas X costo unitario por persona (Total de gasto en transporte/Número de personas)"]
[null,null,"Alojamiento ","El valor total del alojamiento se calcula de la multiplicación del número de días de la salida X número de personas X Costo unitario "]
[null,null,"Alimentación ","El valor total de alimentación se calcula de la multiplicación del número de días de la salida X número de personas X Costo unitario "]
[null,null,"Otros","Cualquier otro gasto se calcula de la multiplicación del número de días de la salida X número de personas X Costo unitario "]
[null,null,null,null,null,"Breve explicación del gasto",null,null,"UDLA/Externo",null,"Total","Validador","Valor total para el año 2025","Valor total para el año 2026","Valor total para el año 2027","Valor total para el año 2028","Suma del presupuesto de cada año"]
[null,"Número de salida ","Salidas de campo terrestres ","Destino ","Tipo de gasto","Detalle del tipo de gasto","Número de días de la salida ","Número de Personas","Fuente de Financiamiento","Costo Unitario","Presupuesto Solicitado Total","Comntario","Año 2025","Año 2026","Año 2027","Año 2028","Gran Total"]
[null,1,"Salidas de campo terrestres ",null,"Transporte ",null,null,null,"UDLA",0,{"$f":"+J12*H12*G12","v":0},{"$f":"+IF(K12=SUM(M12:P12),\"Presupuesto cuadrado columna 'H' y'M'\",\"Por favor revisar, presupuesto descuadrado columna 'H' y'M'\")","v":"Presupuesto cuadrado columna 'H' y'M'"},null,null,null,null,{"$f":"+SUM(M12:P12)","v":0}]
[null,1,"Salidas de campo terrestres ",null,"Alojamiento",null,null,null,"UDLA",0,{"$f":"+J13*H13*G13","v":0},{"$f":"+IF(K13=SUM(M13:P13),\"Presupuesto cuadrado columna 'H' y'M'\",\"Por favor revisar, presupuesto descuadrado columna 'H' y'M'\")","v":"Presupuesto cuadrado columna 'H' y'M'"},null,null,null,null,{"$f":"+SUM(M13:P13)","v":0}]
[null,1,"Salidas de campo terrestres ",null,"Alimentacion ",null,null,null,"UDLA",0,{"$f":"+J14*H14*G14","v":0},"Presupuesto cuadrado columna 'H' y'M'",null,null,null,null,0]
[null,1,"Salidas de campo terrestres ",null,"Otros ",null,null,null,"Externo",0,0,"Presupuesto cuadrado columna 'H' y'M'",null,null,null,null,0]
[null,2,"Salidas de campo terrestres ",null,"Transporte ",null,null,null,"UDLA",0,{"$f":"+J16*H16","v":0},"Presupuesto cuadrado columna 'H' y'M'",null,null,null,null,{"$f":"+SUM(M16:P16)","v":0}]
[null,2,"Salidas de campo terrestres ",null,"Alojamiento",null,null,null,"UDLA",0,{"$f":"+J17*H17*G17","v":0},"Presupuesto cuadrado columna 'H' y'M'",null,null,null,null,{"$f":"+SUM(M17:P17)","v":0}]
[null,2,"Salidas de campo terrestres ",null,"Alimentacion ",null,null,null,"UDLA",0,{"$f":"+J18*H18*G18","v":0},"Presupuesto cuadrado columna 'H' y'M'",null,null,null,null,0]
[null,2,"Salidas de campo terrestres ",null,"Otros ",null,null,null,"UDLA",0,0,"Presupuesto cuadrado columna 'H' y'M'",null,null,null,null,0]
[null,3,"Salidas de campo terrestres ",null,"Transporte ",null,null,null,"UDLA",0,{"$f":"+J20*H20","v":0},"Presupuesto cuadrado columna 'H' y'M'",null,null,null,null,{"$f":"+SUM(M20:P20)","v":0}]
[null,3,"Salidas de campo terrestres ",null,"Alojamiento",null,null,null,"UDLA",0,{"$f":"+J21*H21*G21","v":0},"Presupuesto cuadrado columna 'H' y'M'",null,null,null,null,{"$f":"+SUM(M21:P21)","v":0}]
[null,3,"Salidas de campo terrestres ",null,"Alimentacion ",null,null,null,"UDLA",0,{"$f":"+J22*H22*G22","v":0},"Presupuesto cuadrado columna 'H' y'M'",null,null,null,null,0]
[null,3,"Salidas de campo terrestres ",null,"Otros ",null,null,null,"UDLA",0,0,"Presupuesto cuadrado columna 'H' y'M'",null,null,null,null,0]
[null,4,"Salidas de campo terrestres ",null,"Transporte ",null,null,null,"UDLA",0,{"$f":"+J24*H24","v":0},"Presupuesto cuadrado columna 'H' y'M'",null,null,null,null,{"$f":"+SUM(M24:P24)","v":0}]
[null,4,"Salidas de campo terrestres ",null,"Alojamiento",null,null,null,"UDLA",0,{"$f":"+J25*H25*G25","v":0},"Presupuesto cuadrado columna 'H' y'M'",null,null,null,null,{"$f":"+SUM(M25:P25)","v":0}]
[null,4,"Salidas de campo terrestres ",null,"Alimentacion ",null,null,null,"UDLA",0,{"$f":"+J26*H26*G26","v":0},"Presupuesto cuadrado columna 'H' y'M'",null,null,null,null,0]
[null,4,"Salidas de campo terrestres ",null,"Otros ",null,null,null,"UDLA",0,0,"Presupuesto cuadrado columna 'H' y'M'",null,null,null,null,0]
[null,5,"Salidas de campo terrestres ",null,"Transporte ",null,null,null,"UDLA",0,{"$f":"+J28*H28","v":0},"Presupuesto cuadrado columna 'H' y'M'",null,null,null,null,{"$f":"+SUM(M28:P28)","v":0}]
[null,5,"Salidas de campo terrestres ",null,"Alojamiento",null,null,null,"UDLA",0,{"$f":"+J29*H29*G29","v":0},"Presupuesto cuadrado columna 'H' y'M'",null,null,null,null,{"$f":"+SUM(M29:P29)","v":0}]
[null,5,"Salidas de campo terrestres ",null,"Alimentacion ",null,null,null,"UDLA",0,{"$f":"+J30*H30*G30","v":0},"Presupuesto cuadrado columna 'H' y'M'",null,null,null,null,0]
[null,5,"Salidas de campo terrestres ",null,"Otros ",null,null,null,"UDLA",0,0,"Presupuesto cuadrado columna 'H' y'M'",null,null,null,null,0]
[null,6,"Salidas de campo terrestres ",null,"Transporte ",null,null,null,"UDLA",0,{"$f":"+J32*H32","v":0},"Presupuesto cuadrado columna 'H' y'M'",null,null,null,null,{"$f":"+SUM(M32:P32)","v":0}]
[null,6,"Salidas de campo terrestres ",null,"Alojamiento",null,null,null,"UDLA",0,{"$f":"+J33*H33*G33","v":0},"Presupuesto cuadrado columna 'H' y'M'",null,null,null,null,{"$f":"+SUM(M33:P33)","v":0}]
[null,6,"Salidas de campo terrestres ",null,"Alimentacion ",null,null,null,"UDLA",0,{"$f":"+J34*H34*G34","v":0},"Presupuesto cuadrado columna 'H' y'M'",null,null,null,null,0]
[null,6,"Salidas de campo terrestres ",null,"Otros ",null,null,null,"UDLA",0,0,"Presupuesto cuadrado columna 'H' y'M'",null,null,null,null,0]
[null,7,"Salidas de campo terrestres ",null,"Transporte ",null,null,null,"UDLA",0,{"$f":"+J36*H36","v":0},"Presupuesto cuadrado columna 'H' y'M'",null,null,null,null,{"$f":"+SUM(M36:P36)","v":0}]
[null,7,"Salidas de campo terrestres ",null,"Alojamiento",null,null,null,"UDLA",0,{"$f":"+J37*H37*G37","v":0},"Presupuesto cuadrado columna 'H' y'M'",null,null,null,null,{"$f":"+SUM(M37:P37)","v":0}]
[null,7,"Salidas de campo terrestres ",null,"Alimentacion ",null,null,null,"UDLA",0,{"$f":"+J38*H38*G38","v":0},"Presupuesto cuadrado columna 'H' y'M'",null,null,null,null,0]
[null,7,"Salidas de campo terrestres ",null,"Otros ",null,null,null,"UDLA",0,0,"Presupuesto cuadrado columna 'H' y'M'",null,null,null,null,0]
[null,8,"Salidas de campo terrestres ",null,"Transporte ",null,null,null,"UDLA",0,{"$f":"+J40*H40","v":0},"Presupuesto cuadrado columna 'H' y'M'",null,null,null,null,{"$f":"+SUM(M40:P40)","v":0}]
[null,8,"Salidas de campo terrestres ",null,"Alojamiento",null,null,null,"UDLA",0,{"$f":"+J41*H41*G41","v":0},"Presupuesto cuadrado columna 'H' y'M'",null,null,null,null,{"$f":"+SUM(M41:P41)","v":0}]
[null,8,"Salidas de campo terrestres ",null,"Alimentacion ",null,null,null,"UDLA",0,{"$f":"+J42*H42*G42","v":0},"Presupuesto cuadrado columna 'H' y'M'",null,null,null,null,0]
[null,8,"Salidas de campo terrestres ",null,"Otros ",null,null,null,"UDLA",0,0,"Presupuesto cuadrado columna 'H' y'M'",null,null,null,null,0]
[null,9,"Salidas de campo terrestres ",null,"Transporte ",null,null,null,"UDLA",0,{"$f":"+J44*H44","v":0},"Presupuesto cuadrado columna 'H' y'M'",null,null,null,null,{"$f":"+SUM(M44:P44)","v":0}]
[null,9,"Salidas de campo terrestres ",null,"Alojamiento",null,null,null,"UDLA",0,{"$f":"+J45*H45*G45","v":0},"Presupuesto cuadrado columna 'H' y'M'",null,null,null,null,{"$f":"+SUM(M45:P45)","v":0}]
[null,9,"Salidas de campo terrestres ",null,"Alimentacion ",null,null,null,"UDLA",0,{"$f":"+J46*H46*G46","v":0},"Presupuesto cuadrado columna 'H' y'M'",null,null,null,null,0]
[null,9,"Salidas de campo terrestres ",null,"Otros ",null,null,null,"UDLA",0,0,"Presupuesto cuadrado columna 'H' y'M'",null,null,null,null,0]
[null,10,"Salidas de campo terrestres ",null,"Transporte ",null,null,null,"UDLA",0,{"$f":"+J48*H48","v":0},"Presupuesto cuadrado columna 'H' y'M'",null,null,null,null,{"$f":"+SUM(M48:P48)","v":0}]
[null,10,"Salidas de campo terrestres ",null,"Alojamiento",null,null,null,"UDLA",0,{"$f":"+J49*H49*G49","v":0},"Presupuesto cuadrado columna 'H' y'M'",null,null,null,null,{"$f":"+SUM(M49:P49)","v":0}]
[null,10,"Salidas de campo terrestres ",null,"Alimentacion ",null,null,null,"UDLA",0,{"$f":"+J50*H50*G50","v":0},"Presupuesto cuadrado columna 'H' y'M'",null,null,null,null,0]
[null,10,"Salidas de campo terrestres ",null,"Otros ",null,null,null,"UDLA",0,0,"Presupuesto cuadrado columna 'H' y'M'",null,null,null,null,0]
[null,11,"Salidas de campo terrestres ",null,"Transporte ",null,null,null,"UDLA",0,{"$f":"+J52*H52","v":0},{"$f":"+IF(K52=SUM(M52:P52),\"Presupuesto cuadrado columna 'H' y'M'\",\"Por favor revisar, presupuesto descuadrado columna 'H' y'M'\")","v":"Presupuesto cuadrado columna 'H' y'M'"},null,null,null,null,{"$f":"+SUM(M52:P52)","v":0}]
[null,11,"Salidas de campo terrestres ",null,"Alojamiento",null,null,null,"UDLA",0,{"$f":"+J53*H53*G53","v":0},"Presupuesto cuadrado columna 'H' y'M'",null,null,null,null,{"$f":"+SUM(M53:P53)","v":0}]
[null,11,"Salidas de campo terrestres ",null,"Alimentacion ",null,null,null,"UDLA",0,{"$f":"+J54*H54*G54","v":0},"Presupuesto cuadrado columna 'H' y'M'",null,null,null,null,0]
[null,11,"Salidas de campo terrestres ",null,"Otros ",null,null,null,"UDLA",0,0,"Presupuesto cuadrado columna 'H' y'M'",null,null,null,null,0]
[null,12,"Salidas de campo terrestres ",null,"Transporte ",null,null,null,"UDLA",0,{"$f":"+J56*H56","v":0},"Presupuesto cuadrado columna 'H' y'M'",null,null,null,null,{"$f":"+SUM(M56:P56)","v":0}]
[null,12,"Salidas de campo terrestres ",null,"Alojamiento",null,null,null,"UDLA",0,{"$f":"+J57*H57*G57","v":0},"Presupuesto cuadrado columna 'H' y'M'",null,null,null,null,{"$f":"+SUM(M57:P57)","v":0}]
[null,12,"Salidas de campo terrestres ",null,"Alimentacion ",null,null,null,"UDLA",0,{"$f":"+J58*H58*G58","v":0},"Presupuesto cuadrado columna 'H' y'M'",null,null,null,null,0]
[null,12,"Salidas de campo terrestres ",null,"Otros ",null,null,null,"UDLA",0,0,"Presupuesto cuadrado columna 'H' y'M'",null,null,null,null,0]
[null,13,"Salidas de campo terrestres ",null,"Transporte ",null,null,null,"UDLA",0,{"$f":"+J60*H60","v":0},"Presupuesto cuadrado columna 'H' y'M'",null,null,null,null,{"$f":"+SUM(M60:P60)","v":0}]
[null,13,"Salidas de campo terrestres ",null,"Alojamiento",null,null,null,"UDLA",0,{"$f":"+J61*H61*G61","v":0},"Presupuesto cuadrado columna 'H' y'M'",null,null,null,null,{"$f":"+SUM(M61:P61)","v":0}]
[null,13,"Salidas de campo terrestres ",null,"Alimentacion ",null,null,null,"UDLA",0,{"$f":"+J62*H62*G62","v":0},"Presupuesto cuadrado columna 'H' y'M'",null,null,null,null,0]
[null,13,"Salidas de campo terrestres ",null,"Otros ",null,null,null,"UDLA",0,0,"Presupuesto cuadrado columna 'H' y'M'",null,null,null,null,0]
[null,14,"Salidas de campo terrestres ",null,"Transporte ",null,null,null,"UDLA",0,{"$f":"+J64*H64","v":0},"Presupuesto cuadrado columna 'H' y'M'",null,null,null,null,{"$f":"+SUM(M64:P64)","v":0}]
[null,14,"Salidas de campo terrestres ",null,"Alojamiento",null,null,null,"UDLA",0,{"$f":"+J65*H65*G65","v":0},"Presupuesto cuadrado columna 'H' y'M'",null,null,null,null,{"$f":"+SUM(M65:P65)","v":0}]
[null,14,"Salidas de campo terrestres ",null,"Alimentacion ",null,null,null,"UDLA",0,{"$f":"+J66*H66*G66","v":0},"Presupuesto cuadrado columna 'H' y'M'",null,null,null,null,0]
[null,14,"Salidas de campo terrestres ",null,"Otros ",null,null,null,"UDLA",0,0,"Presupuesto cuadrado columna 'H' y'M'",null,null,null,null,0]
[null,15,"Salidas de campo terrestres ",null,"Transporte ",null,null,null,"UDLA",0,{"$f":"+J68*H68","v":0},{"$f":"+IF(K68=SUM(M68:P68),\"Presupuesto cuadrado columna 'H' y'M'\",\"Por favor revisar, presupuesto descuadrado columna 'H' y'M'\")","v":"Presupuesto cuadrado columna 'H' y'M'"},null,null,null,null,{"$f":"+SUM(M68:P68)","v":0}]
[null,15,"Salidas de campo terrestres ",null,"Alojamiento",null,null,null,"UDLA",0,{"$f":"+J69*H69*G69","v":0},"Presupuesto cuadrado columna 'H' y'M'",null,null,null,null,{"$f":"+SUM(M69:P69)","v":0}]
[null,15,"Salidas de campo terrestres ",null,"Alimentacion ",null,null,null,"UDLA",0,{"$f":"+J70*H70*G70","v":0},"Presupuesto cuadrado columna 'H' y'M'",null,null,null,null,0]
[null,15,"Salidas de campo terrestres ",null,"Otros ",null,null,null,"UDLA",0,0,"Presupuesto cuadrado columna 'H' y'M'",null,null,null,null,0]

{"sheet":"5.Horas de Investigación","index":5,"n_rows":23,"n_cols":24,"rows_kept":23,"cut":false,"hidden":false,"merged":[[22,8,22,9],[22,10,22,11],[22,12,22,13],[22,14,22,15],[5,8,5,15],[0,0,1,18],[2,8,2,9],[2,10,2,11],[2,12,2,13],[2,14,2,15]]}
["PLANIFICACIÓN HORAS DE INVESTIGACIÓN"]
[]
[null,null,null,null,null,null,null,null,2025,null,2026,null,2027,null,2028]
[null,null,"Nombre del Proyecto",{"$f":"+#REF!","v":{"$error":"#REF!"}}]
[]
[null,null,null,null,null,{"$f":"IF(IFERROR(VLOOKUP(\"Director Subrogante\",F7:F22,1,0),0)=\"Director Subrogante\",\" \", \"Es obligatorio que incluya la participación de un director subrogante\")","v":"Es obligatorio que incluya la participación de un director subrogante"},null,null,"Dedicación de horas semanales por semestre"]
["N°","Nombre","Facultad","Carrera","Fuente de Financiamiento","Tipo de Participación","Perfil","Costo por Hora Aproximado","2025-02","2026-10","2026-20","2027-10","2027-20","2028-10","2028-20","2029-10","Dedicación semanal promedio","Total horas del Proyecto","Costo Aproximado Recursos Humanos"]
[1,null,null,null,"Externo",null,null,{"$f":"IFERROR(+VLOOKUP(G8,Rangos[#All],2,0),0)","v":0},null,null,null,null,null,null,null,null,{"$f":"IFERROR(+AVERAGE(I8:P8),0)","v":0},{"$f":"SUM(I8:P8)*4*6","v":0},{"$f":"IFERROR(R8*H8,0)","v":0},null,"Director",null,null,"UDLA"]
[2,null,null,null,"UDLA",null,null,{"$f":"IFERROR(+VLOOKUP(G9,Rangos[#All],2,0),0)","v":0},null,null,null,null,null,null,null,null,{"$f":"IFERROR(+AVERAGE(I9:P9),0)","v":0},{"$f":"SUM(I9:P9)*4*6","v":0},{"$f":"IFERROR(R9*H9,0)","v":0},null,"Director Subrogante",null,null,"Externo"]
[3,null,null,null,"UDLA",null,null,{"$f":"IFERROR(+VLOOKUP(G10,Rangos[#All],2,0),0)","v":0},null,null,null,null,null,null,null,null,{"$f":"IFERROR(+AVERAGE(I10:P10),0)","v":0},0,0,null,"Asociado"]
[4,null,null,null,"UDLA",null,null,{"$f":"IFERROR(+VLOOKUP(G11,Rangos[#All],2,0),0)","v":0},null,null,null,null,null,null,null,null,0,0,0]
[5,null,null,null,"UDLA",null,null,{"$f":"IFERROR(+VLOOKUP(G12,Rangos[#All],2,0),0)","v":0},null,null,null,null,null,null,null,null,0,0,0]
[6,null,null,null,"UDLA",null,null,{"$f":"IFERROR(+VLOOKUP(G13,Rangos[#All],2,0),0)","v":0},null,null,null,null,null,null,null,null,0,0,0]
[7,null,null,null,"UDLA",null,null,{"$f":"IFERROR(+VLOOKUP(G14,Rangos[#All],2,0),0)","v":0},null,null,null,null,null,null,null,null,0,0,0]
[8,null,null,null,"UDLA",null,null,{"$f":"IFERROR(+VLOOKUP(G15,Rangos[#All],2,0),0)","v":0},null,null,null,null,null,null,null,null,0,0,0]
[9,null,null,null,"UDLA",null,null,{"$f":"IFERROR(+VLOOKUP(G16,Rangos[#All],2,0),0)","v":0},null,null,null,null,null,null,null,null,0,0,0]
[10,null,null,null,"UDLA",null,null,{"$f":"IFERROR(+VLOOKUP(G17,Rangos[#All],2,0),0)","v":0},null,null,null,null,null,null,null,null,0,0,0]
[11,null,null,null,"UDLA",null,null,{"$f":"IFERROR(+VLOOKUP(G18,Rangos[#All],2,0),0)","v":0},null,null,null,null,null,null,null,null,0,0,0]
[12,null,null,null,"UDLA",null,null,{"$f":"IFERROR(+VLOOKUP(G19,Rangos[#All],2,0),0)","v":0},null,null,null,null,null,null,null,null,0,0,0]
[null,null,null,null,null,"Total de horas por semanales",null,null,{"$f":"SUM(I8:I19)","v":0},{"$f":"SUM(J8:J19)","v":0},0,0,0,0,0,0,null,0,{"$f":"SUM(S8:S19)","v":0}]
[null,null,null,null,null,"Total costo aproximado por semestre UDLA",null,null,{"$f":"SUMPRODUCT(IF($E$8:$E$19=\"UDLA\",($H$8:$H$19*I8:I19)*24))","v":0},{"$f":"SUMPRODUCT(IF($E$8:$E$19=\"UDLA\",($H$8:$H$19*J8:J19)*24))","v":0},{"$f":"SUMPRODUCT(IF($E$8:$E$19=\"UDLA\",($H$8:$H$19*K8:K19)*24))","v":0},{"$f":"SUMPRODUCT(IF($E$8:$E$19=\"UDLA\",($H$8:$H$19*L8:L19)*24))","v":0},{"$f":"SUMPRODUCT(IF($E$8:$E$19=\"UDLA\",($H$8:$H$19*M8:M19)*24))","v":0},{"$f":"SUMPRODUCT(IF($E$8:$E$19=\"UDLA\",($H$8:$H$19*N8:N19)*24))","v":0},{"$f":"SUMPRODUCT(IF($E$8:$E$19=\"UDLA\",($H$8:$H$19*O8:O19)*24))","v":0},{"$f":"SUMPRODUCT(IF($E$8:$E$19=\"UDLA\",($H$8:$H$19*P8:P19)*24))","v":0},null,{"$f":"SUMIF(E8:$E$19,\"UDLA\",$R$8:$R$19)","v":0},{"$f":"SUMIF(E8:$E$19,\"UDLA\",$S$8:$S$19)","v":0}]
[null,null,null,null,null,"Total costo aproximado por semestre EXTERNOS",null,null,{"$f":"SUMPRODUCT(IF($E$8:$E$19=\"EXTERNO\",($H$8:$H$19*I8:I19)*24))","v":0},{"$f":"SUMPRODUCT(IF($E$8:$E$19=\"EXTERNO\",($H$8:$H$19*J8:J19)*24))","v":0},{"$f":"SUMPRODUCT(IF($E$8:$E$19=\"EXTERNO\",($H$8:$H$19*K8:K19)*24))","v":0},{"$f":"SUMPRODUCT(IF($E$8:$E$19=\"EXTERNO\",($H$8:$H$19*L8:L19)*24))","v":0},{"$f":"SUMPRODUCT(IF($E$8:$E$19=\"EXTERNO\",($H$8:$H$19*M8:M19)*24))","v":0},{"$f":"SUMPRODUCT(IF($E$8:$E$19=\"EXTERNO\",($H$8:$H$19*N8:N19)*24))","v":0},{"$f":"SUMPRODUCT(IF($E$8:$E$19=\"EXTERNO\",($H$8:$H$19*O8:O19)*24))","v":0},{"$f":"SUMPRODUCT(IF($E$8:$E$19=\"EXTERNO\",($H$8:$H$19*P8:P19)*24))","v":0},null,{"$f":"SUMIF(E8:$E$19,\"Externo\",$R$8:$R$19)","v":0},{"$f":"SUMIF(E8:$E$19,\"Externo\",$S$8:$S$19)","v":0}]
[null,null,null,null,null,"Total de presupuesto de horas por año",null,null,{"$f":"+I21+J21+I22+J22","v":0},null,{"$f":"+K21+L21+K22+L22","v":0},null,{"$f":"+M21+N21+M22+N22","v":0},null,{"$f":"+O21+P21+O22+P22","v":0},null,null,null,{"$f":"+S21+S22-O23-M23-K23-I23","v":0}]

{"sheet":"4. Viajes","index":6,"n_rows":158,"n_cols":39,"rows_kept":158,"cut":false,"hidden":false,"merged":[[12,2,12,4],[13,2,13,4],[12,6,12,8],[13,6,13,8],[11,10,11,12],[12,10,12,12],[13,10,13,12],[13,38,13,40],[20,12,20,13],[11,34,11,36],[12,34,12,36],[13,34,13,36],[13,30,13,32],[11,26,11,28],[12,26,12,28],[13,26,13,28],[13,22,13,24],[13,18,13,20],[11,14,11,16],[12,14,12,16],[13,14,13,16],[12,22,12,24],[11,22,11,24],[7,2,7,4],[1,2,1,4],[8,2,8,4],[10,2,10,4],[11,2,11,4],[3,6,3,8],[3,1,3,4],[4,1,4,4],[5,2,5,4],[6,2,6,4],[4,6,4,8],[5,6,5,8],[6,6,6,8],[7,6,7,8],[8,6,8,8],[10,6,10,8],[11,6,11,8],[9,6,9,8],[9,2,9,4],[3,14,3,16],[4,14,4,16],[5,14,5,16],[6,14,6,16],[7,14,7,16],[8,14,8,16],[7,10,7,12],[8,10,8,12],[10,10,10,12],[9,10,9,12],[9,14,9,16],[3,10,3,12],[4,10,4,12],[5,10,5,12],[6,10,6,12],[10,14,10,16],[21,12,21,13],[146,12,146,13],[147,12,147,13],[132,12,132,13],[133,12,133,13],[118,12,118,13],[119,12,119,13],[104,12,104,13],[105,12,105,13],[91,12,91,13],[90,12,90,13],[76,12,76,13],[77,12,77,13],[62,12,62,13],[63,12,63,13],[48,12,48,13],[49,12,49,13],[34,12,34,13],[35,12,35,13],[3,38,3,40],[4,38,4,40],[5,38,5,40],[6,38,6,40],[10,18,10,20],[11,18,11,20],[12,18,12,20],[3,22,3,24],[4,22,4,24],[5,22,5,24],[6,22,6,24],[7,22,7,24],[8,22,8,24],[3,18,3,20],[4,18,4,20],[5,18,5,20],[6,18,6,20],[7,18,7,20],[8,18,8,20],[9,18,9,20],[9,22,9,24],[10,22,10,24],[4,26,4,28],[5,26,5,28],[7,26,7,28],[8,26,8,28],[9,26,9,28],[9,30,9,32],[9,34,9,36],[39,15,39,20],[10,26,10,28],[29,15,29,20],[20,15,20,20],[3,26,3,28],[7,38,7,40],[8,38,8,40],[10,30,10,32],[11,30,11,32],[12,30,12,32],[3,34,3,36],[4,34,4,36],[5,34,5,36],[6,34,6,36],[7,34,7,36],[8,34,8,36],[3,30,3,32],[4,30,4,32],[5,30,5,32],[6,30,6,32],[7,30,7,32],[8,30,8,32],[10,38,10,40],[11,38,11,40],[12,38,12,40],[9,38,9,40],[10,34,10,36],[6,26,6,28]]}
[]
[null,"¿Cuántos viajes que requiera un ticket aéreo va a realizar?","Diez (10)"]
[]
[null,"Información General del Viaje ",null,null,null,null,"Información Segundo Viaje",null,null,null,"Información Tercer Viaje",null,null,null,"Información Cuarto Viaje ",null,null,null,"Información Quinto Viaje ",null,null,null,"Información Sexto Viaje ",null,null,null,"Información Séptimo Viaje ",null,null,null,"Información Octavo Viaje ",null,null,null,"Información Noveno Viaje ",null,null,null,"Información Décimo Viaje "]
[null,"Proyecto de Investigación XVI Convocatoria",null,null,null,null," "]
[null,"¿Qué tipo de viaje va a realizar?","Internacional"]
[null,"Motivo del Viaje: ","Otros: Congresos y/o eventos"]
[null,"Destino"]
[null,"¿Cuántos días dura el viaje?"]
[null,"¿Cuántas personas van a viajar?"]
[null,{"$f":"IF(C7=\"Estancias de investigación\",\"Detalle el plan de trabajo a realizar y el aporte al proyecto. En caso de ser viaje internacional explique por qué no se puede hacer a nivel nacional o por qué no se puede ejecutar de manera virutal en ambos casos\",IF(C7=\"Estancias doctorales\",\"Detalle el plan de trabajo a realizar y el aporte al proyecto. En caso de ser viaje internacional explique por qué no se puede hacer a nivel nacional o por qué no se puede ejecutar de manera virutal en ambos casos\",\"Explique la necesidad de este viaje para la ejecución el proyecto:\"))","v":"Explique la necesidad de este viaje para la ejecución el proyecto:"}]
[null,"¿Cuáles son los riesgos y posibles consecuencias para la UDLA si no se ejecuta este viaje en términos de cumplimiento de los objetivos del proyecto, plazos, relaciones institucionales y oportunidades de financiamiento futuro?"]
[null,"Beneficios para la UDLA en caso de ejecutarse con éxito el viaje:"]
[null,"Congreso (Si aplica):","(Nombre del Congreso)",null,null,{"$f":"IF(G6=\"Otros: Congresos y/o eventos\", \"Impacto Internacional del Evento o Congreso\", IF(G6=\"Estancias doctorales\", \"Nombre del estudiante debidamente registrado en la DGIV\", IF(G6=\"Estancias de investigación\",\"Coloque el nombre de los asistentes\",\"\")))","v":""},"(Nombre del Congreso)",null,null,null,"(Nombre del Congreso)"]
[null,{"$f":"IF(C7=\"Otros: Congresos y/o eventos\", \"Impacto Internacional del Evento o Congreso\", IF(C7=\"Estancias doctorales\", \"Nombre del estudiante debidamente registrado en la DGIV\", IF(C7=\"Estancias de investigación\",\"Coloque el nombre de los asistentes\",\"\")))","v":"Impacto Internacional del Evento o Congreso"},null,null,null,{"$f":"IF(G7=\"Otros: Congresos y/o eventos\", \"Impacto Internacional del Evento o Congreso\", IF(G7=\"Estancias doctorales\", \"Nombre del estudiante debidamente registrado en la DGIV\", IF(G7=\"Estancias de investigación\",\"Coloque el nombre de los asistentes\",\"\")))","v":""},null,null,null,{"$f":"IF(K7=\"Otros: Congresos y/o eventos\", \"Impacto Internacional del Evento o Congreso\", IF(K7=\"Estancias doctorales\", \"Nombre del estudiante debidamente registrado en la DGIV\", IF(K7=\"Estancias de investigación\",\"Coloque el nombre de los asistentes\",\"\")))","v":""},null,null,null,{"$f":"IF(O7=\"Otros: Congresos y/o eventos\", \"Impacto Internacional del Evento o Congreso\", IF(O7=\"Estancias doctorales\", \"Nombre del estudiante debidamente registrado en la DGIV\", IF(O7=\"Estancias de investigación\",\"Coloque el nombre de los asistentes\",\"\")))","v":""},null,null,null,{"$f":"IF(S7=\"Otros: Congresos y/o eventos\", \"Impacto Internacional del Evento o Congreso\", IF(S7=\"Estancias doctorales\", \"Nombre del estudiante debidamente registrado en la DGIV\", IF(S7=\"Estancias de investigación\",\"Coloque el nombre de los asistentes\",\"\")))","v":""},null,null,null,{"$f":"IF(W7=\"Otros: Congresos y/o eventos\", \"Impacto Internacional del Evento o Congreso\", IF(W7=\"Estancias doctorales\", \"Nombre del estudiante debidamente registrado en la DGIV\", IF(W7=\"Estancias de investigación\",\"Coloque el nombre de los asistentes\",\"\")))","v":""},null,null,null,{"$f":"IF(AA7=\"Otros: Congresos y/o eventos\", \"Impacto Internacional del Evento o Congreso\", IF(AA7=\"Estancias doctorales\", \"Nombre del estudiante debidamente registrado en la DGIV\", IF(AA7=\"Estancias de investigación\",\"Coloque el nombre de los asistentes\",\"\")))","v":""},null,null,null,{"$f":"IF(AE7=\"Otros: Congresos y/o eventos\", \"Impacto Internacional del Evento o Congreso\", IF(AE7=\"Estancias doctorales\", \"Nombre del estudiante debidamente registrado en la DGIV\", IF(AE7=\"Estancias de investigación\",\"Coloque el nombre de los asistentes\",\"\")))","v":""},null,null,null,{"$f":"IF(AI7=\"Otros: Congresos y/o eventos\", \"Impacto Internacional del Evento o Congreso\", IF(AI7=\"Estancias doctorales\", \"Nombre del estudiante debidamente registrado en la DGIV\", IF(AI7=\"Estancias de investigación\",\"Coloque el nombre de los asistentes\",\"\")))","v":""},null,null,null,{"$f":"IF(AM7=\"Otros: Congresos y/o eventos\", \"Impacto Internacional del Evento o Congreso\", IF(AM7=\"Estancias doctorales\", \"Nombre del estudiante debidamente registrado en la DGIV\", IF(AM7=\"Estancias de investigación\",\"Coloque el nombre de los asistentes\",\"\")))","v":""}]
[null,{"$f":"IF(C7=\"Otros: Congresos y/o eventos\", \"Tipo de participación\", IF(C7=\"Estancias doctorales\", \"Asistente o técnico de investigación\", IF(C7=\"Estancias doctorales\", \"Este viaje tiene financiamiento externo?\", \"\")))","v":"Tipo de participación"},null,null,null,{"$f":"IF(G7=\"Otros: Congresos y/o eventos\", \"Tipo de participación\", IF(G7=\"Estancias doctorales\", \"Asistente o técnico de investigación\", \"\"))","v":""},null,null,null,{"$f":"IF(K7=\"Otros: Congresos y/o eventos\", \"Tipo de participación\", IF(K7=\"Estancias doctorales\", \"Asistente o técnico de investigación\", \"\"))","v":""},null,null,null,{"$f":"IF(O7=\"Otros: Congresos y/o eventos\", \"Tipo de participación\", IF(O7=\"Estancias doctorales\", \"Asistente o técnico de investigación\", \"\"))","v":""},null,null,null,{"$f":"IF(S7=\"Otros: Congresos y/o eventos\", \"Tipo de participación\", IF(S7=\"Estancias doctorales\", \"Asistente o técnico de investigación\", \"\"))","v":""},null,null,null,{"$f":"IF(W7=\"Otros: Congresos y/o eventos\", \"Tipo de participación\", IF(W7=\"Estancias doctorales\", \"Asistente o técnico de investigación\", \"\"))","v":""},null,null,null,{"$f":"IF(AA7=\"Otros: Congresos y/o eventos\", \"Tipo de participación\", IF(AA7=\"Estancias doctorales\", \"Asistente o técnico de investigación\", \"\"))","v":""},null,null,null,{"$f":"IF(AE7=\"Otros: Congresos y/o eventos\", \"Tipo de participación\", IF(AE7=\"Estancias doctorales\", \"Asistente o técnico de investigación\", \"\"))","v":""},null,null,null,{"$f":"IF(AI7=\"Otros: Congresos y/o eventos\", \"Tipo de participación\", IF(AI7=\"Estancias doctorales\", \"Asistente o técnico de investigación\", \"\"))","v":""},null,null,null,{"$f":"IF(AM7=\"Otros: Congresos y/o eventos\", \"Tipo de participación\", IF(AM7=\"Estancias doctorales\", \"Asistente o técnico de investigación\", \"\"))","v":""}]
[null,{"$f":"IF(C7=\"Otros: Congresos y/o eventos\",\"¿El trabajo se va a publicar?\",\"\")","v":"¿El trabajo se va a publicar?"},null,null,null,{"$f":"IF(G7=\"Otros: Congresos y/o eventos\",\"¿El trabajo se va a publicar?\",IF(G7=\"Estancias de investigación\",\"\",IF(G7=\"Estancias doctorales\", \"Este viaje cuenta con financiamiento externo?\",\"\")))","v":""},null,null,null,{"$f":"IF(K7=\"Otros: Congresos y/o eventos\",\"¿El trabajo se va a publicar?\",IF(K7=\"Estancias de investigación\",\"\",IF(K7=\"Estancias doctorales\", \"Este viaje cuenta con financiamiento externo?\",\"\")))","v":""},null,null,null,{"$f":"IF(O7=\"Otros: Congresos y/o eventos\",\"¿El trabajo se va a publicar?\",IF(O7=\"Estancias de investigación\",\"\",IF(O7=\"Estancias doctorales\", \"Este viaje cuenta con financiamiento externo?\",\"\")))","v":""},null,null,null,{"$f":"IF(S7=\"Otros: Congresos y/o eventos\",\"¿El trabajo se va a publicar?\",IF(S7=\"Estancias de investigación\",\"\",IF(S7=\"Estancias doctorales\", \"Este viaje cuenta con financiamiento externo?\",\"\")))","v":""},null,null,null,{"$f":"IF(W7=\"Otros: Congresos y/o eventos\",\"¿El trabajo se va a publicar?\",IF(W7=\"Estancias de investigación\",\"\",IF(W7=\"Estancias doctorales\", \"Este viaje cuenta con financiamiento externo?\",\"\")))","v":""},null,null,null,{"$f":"IF(AA7=\"Otros: Congresos y/o eventos\",\"¿El trabajo se va a publicar?\",IF(AA7=\"Estancias de investigación\",\"\",IF(AA7=\"Estancias doctorales\", \"Este viaje cuenta con financiamiento externo?\",\"\")))","v":""},null,null,null,{"$f":"IF(AE7=\"Otros: Congresos y/o eventos\",\"¿El trabajo se va a publicar?\",IF(AE7=\"Estancias de investigación\",\"\",IF(AE7=\"Estancias doctorales\", \"Este viaje cuenta con financiamiento externo?\",\"\")))","v":""},null,null,null,{"$f":"IF(AI7=\"Otros: Congresos y/o eventos\",\"¿El trabajo se va a publicar?\",IF(AI7=\"Estancias de investigación\",\"\",IF(AI7=\"Estancias doctorales\", \"Este viaje cuenta con financiamiento externo?\",\"\")))","v":""},null,null,null,{"$f":"IF(AM7=\"Otros: Congresos y/o eventos\",\"¿El trabajo se va a publicar?\",IF(AM7=\"Estancias de investigación\",\"\",IF(AM7=\"Estancias doctorales\", \"Este viaje cuenta con financiamiento externo?\",\"\")))","v":""}]
[]
[null,"Si su viaje posee financiamiento externo, detallelo en la información del gasto "]
[null,"Infromación Primer Viaje ",null,null,null,null,null,"Valor total para 2025","Valor total para 2026","Valor total para 2027","Valor total para 2028"]
[null,"Descripción del Gasto ","Categoria ","Fuente de Financiamiento ","Cantidad ","Costo Unitario ","Total ","Año 2025","Año 2026","Año 2027","Año 2028","Validador","Total viajes Técnicos ",null,null,"Total Presupuestado para Viajes "]
[null,null,null,"Externo",null,null,{"$f":"+F22*E22","v":0},null,0,0,0,{"$f":"IF(SUM(G22)=SUM(H22:K22),\"\",\"Los valores de esta fila no cuadran\")","v":""},{"$f":"IF(SUM(G22:G32)=SUM(H22:K32),SUM(H22:K32), \"Total y sumatoria de años no cuadra\")","v":0},null,null,"Años","Transporte ","Alojamiento","Alimentacion ","Otros ","Total"]
[null,null,null,"Externo",null,0,{"$f":"+E23*F23","v":0},0,0,0,0,{"$f":"IF(SUM(G23)=SUM(H23:K23),\"\",\"El total y los valores totales por años no cuadran\")","v":""},null,null,null,2025,{"$f":"SUMIFS(H:H,C:C,\"Transporte\")","v":0},{"$f":"SUMIFS(H:H,C:C,\"Alojamiento\")","v":0},{"$f":"SUMIFS(H:H,C:C,\"Alimentacion \")","v":0},{"$f":"SUMIFS(H:H,C:C,\"Otros \")","v":0},{"$f":"SUM(Q23:T23)","v":0}]
[null,null,null,null,null,0,0,0,0,0,0,"",null,null,null,2026,{"$f":"SUMIFS(I:I,C:C,\"Transporte\")","v":0},{"$f":"SUMIFS(I:I,C:C,\"Alojamiento\")","v":0},{"$f":"SUMIFS(I:I,C:C,\"Alimentacion \")","v":0},{"$f":"SUMIFS(I:I,C:C,\"Otros \")","v":0},{"$f":"SUM(Q24:T24)","v":0}]
[null,null,null,null,null,0,0,0,0,0,0,"","Fondos Udla",{"$f":"SUMIF(D22:D32,\"UDLA\",G22:G32)","v":0},null,2027,{"$f":"SUMIFS(J:J,C:C,\"Transporte\")","v":0},{"$f":"SUMIFS(J:J,C:C,\"Alojamiento\")","v":0},{"$f":"SUMIFS(J:J,C:C,\"Alimentacion \")","v":0},{"$f":"SUMIFS(J:J,C:C,\"Otros \")","v":0},{"$f":"SUM(Q25:T25)","v":0}]
[null,null,null,null,null,0,0,0,0,0,0,"","Fondos Externo",{"$f":"SUMIF(D22:D32,\"Externo\",G22:G32)","v":0},null,2028,{"$f":"SUMIFS(K:K,C:C,\"Transporte\")","v":0},{"$f":"SUMIFS(K:K,C:C,\"Alojamiento\")","v":0},{"$f":"SUMIFS(K:K,C:C,\"Alimentacion \")","v":0},{"$f":"SUMIFS(K:K,C:C,\"Otros \")","v":0},{"$f":"SUM(Q26:T26)","v":0}]
[null,null,null,null,null,0,0,0,0,0,0,"",null,{"$f":"IF(AND(C7=\"Estancias doctorales\",N26>2000),\"Su presupuesto excede el límite permitido para su motivo de viaje\",IF(AND(C7=\"Estancias de Investigación\",N26>3000),\"Su presupuesto excede el límite permitido para su motivo de viaje\",IF(AND(C7=\"Otros: Congresos y/o eventos\",N26>3000),\"Su presupuesto excede el límite permitido para su motivo de viaje\",\"\")))","v":""},null,"Total ",{"$f":"SUM(Q23:Q26)","v":0},{"$f":"SUMIFS(H:H,D:D,\"UDLA\",C:C,\"Alojamiento \")","v":0},{"$f":"SUM(S23:S26)","v":0},{"$f":"SUM(T23:T26)","v":0},{"$f":"SUM(U23:U26)","v":0}]
[null,null,null,null,null,0,0,0,0,0,0,"",null,{"$f":"IF(AND(C7=\"Estancias doctorales\",N25>1000),\"Su presupuesto excede el límite permitido para su motivo de viaje. Revise la política de viajes\",IF(AND(C7=\"Estancias de Investigación\",N25>1500),\"Su presupuesto excede el límite permitido para su motivo de viaje. Revise la política de viajes\",IF(AND(C7=\"Otros: Congresos y/o eventos\",N25>3000),\"Su presupuesto excede el límite permitido para su motivo de viaje. Revise la política de viajes\",\"\")))","v":""}]
[null,null,null,null,null,0,0,0,0,0,0,""]
[null,null,null,null,null,0,0,0,0,0,0,"",null,null,null,"Total Presupuestado para Viajes - UDLA"]
[null,null,null,null,null,0,0,0,0,0,0,"",null,null,null,"Años","Transporte ","Alojamiento","Alimentacion ","Otros ","Total"]
[null,null,null,null,null,0,0,0,0,0,0,"",null,null,null,2025,{"$f":"SUMIFS(H:H,D:D,\"UDLA\",C:C,\"Transporte\")","v":0},{"$f":"SUMIFS(H:H,D:D,\"UDLA\",C:C,\"Alojamiento\")","v":0},{"$f":"SUMIFS(H:H,D:D,\"UDLA\",C:C,\"Alimentacion \")","v":0},{"$f":"SUMIFS(H:H,D:D,\"UDLA\",C:C,\"Otros \")","v":0},{"$f":"SUM(Q32:T32)","v":0}]
[null,null,null,null,null,null,null,null,null,null,null,null,null,null,null,2026,{"$f":"SUMIFS(I:I,D:D,\"UDLA\",C:C,\"Transporte\")","v":0},{"$f":"SUMIFS(I:I,D:D,\"UDLA\",C:C,\"Alojamiento\")","v":0},{"$f":"SUMIFS(I:I,D:D,\"UDLA\",C:C,\"Alimentacion \")","v":0},{"$f":"SUMIFS(I:I,D:D,\"UDLA\",C:C,\"Otros \")","v":0},{"$f":"SUM(Q33:T33)","v":0}]
[null,"Gastos Segundo Viaje ",null,null,null,null,null,"Valor total para 2024","Valor total para 2025","Valor total para 2026","Valor total para 2027",null,null,null,null,2027,{"$f":"SUMIFS(J:J,D:D,\"UDLA\",C:C,\"Transporte\")","v":0},{"$f":"SUMIFS(J:J,D:D,\"UDLA\",C:C,\"Alojamiento\")","v":0},{"$f":"SUMIFS(J:J,D:D,\"UDLA\",C:C,\"Alimentacion \")","v":0},{"$f":"SUMIFS(J:J,D:D,\"UDLA\",C:C,\"Otros \")","v":0},{"$f":"SUM(Q34:T34)","v":0}]
[null,"Descripción del Gasto ","Categoria ","Fuente de Financiamiento ","Cantidad ","Costo Unitario ","Total ","Año 2025","Año 2026","Año 2027","Año 2028",null,"Total viajes Técnicos ",null,null,2028,{"$f":"SUMIFS(K:K,D:D,\"UDLA\",C:C,\"Transporte\")","v":0},{"$f":"SUMIFS(K:K,D:D,\"UDLA\",C:C,\"Alojamiento\")","v":0},{"$f":"SUMIFS(K:K,D:D,\"UDLA\",C:C,\"Alimentacion \")","v":0},{"$f":"SUMIFS(K:K,D:D,\"UDLA\",C:C,\"Otros \")","v":0},{"$f":"SUM(Q35:T35)","v":0}]
[null,null,null,"Externo",null,0,{"$f":"+E36*F36","v":0},0,0,null,0,{"$f":"IF(SUM(G36)=SUM(H36:K36),\"\",\"El total y los valores totales por años no cuadran\")","v":""},{"$f":"IF(SUM(G36:G46)=SUM(H36:K46),SUM(H36:K46), \"Total y sumatoria de años no cuadra\")","v":0},null,null,"Total ",{"$f":"SUM(Q32:Q35)","v":0},{"$f":"SUMIFS(H:H,D:D,\"UDLA\",C:C,\"Alojamiento \")","v":0},{"$f":"SUM(S32:S35)","v":0},{"$f":"SUM(T32:T35)","v":0},{"$f":"SUM(U32:U35)","v":0}]
[null,null,null,"UDLA",null,0,0,0,0,0,0,{"$f":"IF(SUM(G37)=SUM(H37:K37),\"\",\"El total y los valores totales por años no cuadran\")","v":""}]
[null,null,null,null,null,0,0,0,0,0,0,""]
[null,null,null,null,null,0,0,0,0,0,0,"","Fondos Udla",{"$f":"SUMIF(D36:D46,\"UDLA\",G36:G46)","v":0}]
[null,null,null,null,null,0,0,0,0,0,0,"","Fondos Externo",{"$f":"SUMIF(D36:D46,\"Externo\",G36:G46)","v":0},null,"Total Presupuestado para Viajes - Externo"]
[null,null,null,null,null,0,0,0,0,0,0,"",null,{"$f":"IF(AND(G7=\"Estancias doctorales\",N40>2000),\"Su presupuesto excede el límite permitido para su motivo de viaje\",IF(AND(G7=\"Estancias de Investigación\",N40>3000),\"Su presupuesto excede el límite permitido para su motivo de viaje\",IF(AND(G7=\"Otros: Congresos y/o eventos\",N40>3000),\"Su presupuesto excede el límite permitido para su motivo de viaje\",\"\")))","v":""},null,"Años","Transporte ","Alojamiento","Alimentacion ","Otros ","Total"]
[null,null,null,null,null,0,0,0,0,0,0,"",null,{"$f":"IF(AND(G7=\"Estancias doctorales\",N39>1000),\"Su presupuesto excede el límite permitido para su motivo de viaje\",IF(AND(G7=\"Estancias de Investigación\",N39>1500),\"Su presupuesto excede el límite permitido para su motivo de viaje\",IF(AND(G7=\"Otros: Congresos y/o eventos\",N39>3000),\"Su presupuesto excede el límite permitido para su motivo de viaje\",\"\")))","v":""},null,2025,{"$f":"SUMIFS(H:H,D:D,\"Externo\",C:C,\"Transporte\")","v":0},{"$f":"SUMIFS(H:H,D:D,\"Externo\",C:C,\"Alojamiento\")","v":0},{"$f":"SUMIFS(H:H,D:D,\"Externo\",C:C,\"Alimentacion \")","v":0},{"$f":"SUMIFS(H:H,D:D,\"Externo\",C:C,\"Otros \")","v":0},{"$f":"SUM(Q42:T42)","v":0}]
[null,null,null,null,null,0,0,0,0,0,0,"",null,null,null,2026,{"$f":"SUMIFS(I:I,D:D,\"Externo\",C:C,\"Transporte\")","v":0},{"$f":"SUMIFS(I:I,D:D,\"Externo\",C:C,\"Alojamiento\")","v":0},{"$f":"SUMIFS(I:I,D:D,\"Externo\",C:C,\"Alimentacion \")","v":0},{"$f":"SUMIFS(I:I,D:D,\"Externo\",C:C,\"Otros \")","v":0},{"$f":"SUM(Q43:T43)","v":0}]
[null,null,null,null,null,0,0,0,0,0,0,"",null,null,null,2027,{"$f":"SUMIFS(J:J,D:D,\"Externo\",C:C,\"Transporte\")","v":0},{"$f":"SUMIFS(J:J,D:D,\"Externo\",C:C,\"Alojamiento\")","v":0},{"$f":"SUMIFS(J:J,D:D,\"Externo\",C:C,\"Alimentacion \")","v":0},{"$f":"SUMIFS(J:J,D:D,\"Externo\",C:C,\"Otros \")","v":0},{"$f":"SUM(Q44:T44)","v":0}]
[null,null,null,null,null,0,0,0,0,0,0,"",null,null,null,2028,{"$f":"SUMIFS(K:K,D:D,\"Externo\",C:C,\"Transporte\")","v":0},{"$f":"SUMIFS(K:K,D:D,\"Externo\",C:C,\"Alojamiento\")","v":0},{"$f":"SUMIFS(K:K,D:D,\"Externo\",C:C,\"Alimentacion \")","v":0},{"$f":"SUMIFS(K:K,D:D,\"Externo\",C:C,\"Otros \")","v":0},{"$f":"SUM(Q45:T45)","v":0}]
[null,null,null,null,null,0,0,0,0,0,0,"",null,null,null,"Total ",{"$f":"SUM(Q42:Q45)","v":0},{"$f":"SUM(R42:R45)","v":0},{"$f":"SUM(S42:S45)","v":0},{"$f":"SUM(T42:T45)","v":0},{"$f":"SUM(U42:U45)","v":0}]
[]
[null,"Gastos Tercer Viaje ",null,null,null,null,null,"Valor total para 2024","Valor total para 2025","Valor total para 2026","Valor total para 2027"]
[null,"Descripción del Gasto ","Categoria ","Fuente de Financiamiento ","Cantidad ","Costo Unitario ","Total ","Año 2025","Año 2026","Año 2027","Año 2028",null,"Total viajes Técnicos "]
[null,null,null,"Externo",null,0,{"$f":"+E50*F50","v":0},0,0,null,0,{"$f":"IF(SUM(G50)=SUM(H50:K50),\"\",\"El total y los valores totales por años no cuadran\")","v":""},{"$f":"IF(SUM(G50:G60)=SUM(H50:K60),SUM(H50:K60), \"Total y sumatoria de años no cuadra\")","v":0}]
[null,null,null,"UDLA",null,0,0,0,0,0,0,{"$f":"IF(SUM(G51)=SUM(H51:K51),\"\",\"El total y los valores totales por años no cuadran\")","v":""}]
[null,null,null,null,null,0,0,0,0,0,0,""]
[null,null,null,null,null,0,0,0,0,0,0,"","Fondos Udla",{"$f":"SUMIF(D50:D60,\"UDLA\",G50:G60)","v":0}]
[null,null,null,null,null,0,0,0,0,0,0,"","Fondos Externo",{"$f":"SUMIF(D50:D60,\"Externo\",G50:G60)","v":0}]
[null,null,null,null,null,0,0,0,0,0,0,"",null,{"$f":"IF(AND(K7=\"Estancias doctorales\",N54>2000),\"Su presupuesto excede el límite permitido para su motivo de viaje\",IF(AND(K7=\"Estancias de Investigación\",N54>3000),\"Su presupuesto excede el límite permitido para su motivo de viaje\",IF(AND(K7=\"Otros: Congresos y/o eventos\",N54>3000),\"Su presupuesto excede el límite permitido para su motivo de viaje\",\"\")))","v":""}]
[null,null,null,null,null,0,0,0,0,0,0,"",null,{"$f":"IF(AND(K7=\"Estancias doctorales\",N53>1000),\"Su presupuesto excede el límite permitido para su motivo de viaje\",IF(AND(K7=\"Estancias de Investigación\",N53>1500),\"Su presupuesto excede el límite permitido para su motivo de viaje\",IF(AND(K7=\"Otros: Congresos y/o eventos\",N53>3000),\"Su presupuesto excede el límite permitido para su motivo de viaje\",\"\")))","v":""}]
[null,null,null,null,null,0,0,0,0,0,0,""]
[null,null,null,null,null,0,0,0,0,0,0,""]
[null,null,null,null,null,0,0,0,0,0,0,""]
[null,null,null,null,null,0,0,0,0,0,0,""]
[]
[null,"Gastos Cuarto Viaje ",null,null,null,null,null,"Valor total para 2024","Valor total para 2025","Valor total para 2026","Valor total para 2027"]
[null,"Descripción del Gasto ","Categoria ","Fuente de Financiamiento ","Cantidad ","Costo Unitario ","Total ","Año 2025","Año 2026","Año 2027","Año 2028",null,"Total viajes Técnicos "]
[null,null,null,"UDLA",1,4000,{"$f":"+E64*F64","v":4000},0,0,null,0,{"$f":"IF(SUM(G64)=SUM(H64:K64),\"\",\"El total y los valores totales por años no cuadran\")","v":"El total y los valores totales por años no cuadran"},{"$f":"IF(SUM(G64:G74)=SUM(H64:K74),SUM(H64:K74), \"Total y sumatoria de años no cuadra\")","v":"Total y sumatoria de años no cuadra"}]
[null,null,null,"Externo",null,0,0,0,0,0,0,{"$f":"IF(SUM(G65)=SUM(H65:K65),\"\",\"El total y los valores totales por años no cuadran\")","v":""}]
[null,null,null,null,null,0,0,0,0,0,0,""]
[null,null,null,null,null,0,0,0,0,0,0,"","Fondos Udla",{"$f":"SUMIF(D64:D74,\"UDLA\",G64:G74)","v":4000}]
[null,null,null,null,null,0,0,0,0,0,0,"","Fondos Externo",{"$f":"SUMIF(D64:D74,\"Externo\",G64:G74)","v":0}]
[null,null,null,null,null,0,0,0,0,0,0,"",null,{"$f":"IF(AND(O7=\"Estancias doctorales\",N68>2000),\"Su presupuesto excede el límite permitido para su motivo de viaje\",IF(AND(O7=\"Estancias de Investigación\",N68>3000),\"Su presupuesto excede el límite permitido para su motivo de viaje\",IF(AND(O7=\"Otros: Congresos y/o eventos\",N68>3000),\"Su presupuesto excede el límite permitido para su motivo de viaje\",\"\")))","v":""}]
[null,null,null,null,null,0,0,0,0,0,0,"",null,{"$f":"IF(AND(O7=\"Estancias doctorales\",N67>1000),\"Su presupuesto excede el límite permitido para su motivo de viaje\",IF(AND(O7=\"Estancias de Investigación\",N67>1500),\"Su presupuesto excede el límite permitido para su motivo de viaje\",IF(AND(O7=\"Otros: Congresos y/o eventos\",N67>3000),\"Su presupuesto excede el límite permitido para su motivo de viaje\",\"\")))","v":""}]
[null,null,null,null,null,0,0,0,0,0,0,""]
[null,null,null,null,null,0,0,0,0,0,0,""]
[null,null,null,null,null,0,0,0,0,0,0,""]
[null,null,null,null,null,0,0,0,0,0,0,""]
[]
[null,"Gastos Quinto Viaje ",null,null,null,null,null,"Valor total para 2024","Valor total para 2025","Valor total para 2026","Valor total para 2027"]
[null,"Descripción del Gasto ","Categoria ","Fuente de Financiamiento ","Cantidad ","Costo Unitario ","Total ","Año 2025","Año 2026","Año 2027","Año 2028",null,"Total viajes Técnicos "]
[null,null,null,"UDLA",null,0,{"$f":"+E78*F78","v":0},0,0,null,0,{"$f":"IF(SUM(G78)=SUM(H78:K78),\"\",\"El total y los valores totales por años no cuadran\")","v":""},{"$f":"IF(SUM(G78:G88)=SUM(H78:K88),SUM(H78:K88), \"Total y sumatoria de años no cuadra\")","v":0}]
[null,null,null,"Externo",null,0,0,0,0,0,0,{"$f":"IF(SUM(G79)=SUM(H79:K79),\"\",\"El total y los valores totales por años no cuadran\")","v":""}]
[null,null,null,null,null,0,0,0,0,0,0,""]
[null,null,null,null,null,0,0,0,0,0,0,"","Fondos Udla",{"$f":"SUMIF(D78:D88,\"UDLA\",G78:G88)","v":0}]
[null,null,null,null,null,0,0,0,0,0,0,"","Fondos Externo",{"$f":"SUMIF(D78:D88,\"Externo\",G78:G88)","v":0}]
[null,null,null,null,null,0,0,0,0,0,0,"",null,{"$f":"IF(AND(S7=\"Estancias doctorales\",N82>2000),\"Su presupuesto excede el límite permitido para su motivo de viaje\",IF(AND(S7=\"Estancias de Investigación\",N82>3000),\"Su presupuesto excede el límite permitido para su motivo de viaje\",IF(AND(S7=\"Otros: Congresos y/o eventos\",N82>3000),\"Su presupuesto excede el límite permitido para su motivo de viaje\",\"\")))","v":""}]
[null,null,null,null,null,0,0,0,0,0,0,"",null,{"$f":"IF(AND(S7=\"Estancias doctorales\",N81>1000),\"Su presupuesto excede el límite permitido para su motivo de viaje\",IF(AND(S7=\"Estancias de Investigación\",N81>1500),\"Su presupuesto excede el límite permitido para su motivo de viaje\",IF(AND(S7=\"Otros: Congresos y/o eventos\",N81>3000),\"Su presupuesto excede el límite permitido para su motivo de viaje\",\"\")))","v":""}]
[null,null,null,null,null,0,0,0,0,0,0,""]
[null,null,null,null,null,0,0,0,0,0,0,""]
[null,null,null,null,null,0,0,0,0,0,0,""]
[null,null,null,null,null,0,0,0,0,0,0,""]
[]
[null,"Gastos Sexto Viaje ",null,null,null,null,null,"Valor total para 2024","Valor total para 2025","Valor total para 2026","Valor total para 2027"]
[null,"Descripción del Gasto ","Categoria ","Fuente de Financiamiento ","Cantidad ","Costo Unitario ","Total ","Año 2025","Año 2026","Año 2027","Año 2028",null,"Total viajes Técnicos "]
[null,null,null,"UDLA",null,0,{"$f":"+E92*F92","v":0},0,0,null,0,{"$f":"IF(SUM(G92)=SUM(H92:K92),\"\",\"El total y los valores totales por años no cuadran\")","v":""},{"$f":"IF(SUM(G92:G102)=SUM(H92:K102),SUM(H92:K102), \"Total y sumatoria de años no cuadra\")","v":0}]
[null,null,null,"Externo",null,0,0,0,0,0,0,{"$f":"IF(SUM(G93)=SUM(H93:K93),\"\",\"El total y los valores totales por años no cuadran\")","v":""}]
[null,null,null,null,null,0,0,0,0,0,0,""]
[null,null,null,null,null,0,0,0,0,0,0,"","Fondos Udla",{"$f":"SUMIF(D92:D102,\"UDLA\",G92:G102)","v":0}]
[null,null,null,null,null,0,0,0,0,0,0,"","Fondos Externo",{"$f":"SUMIF(D92:D102,\"Externo\",G92:G102)","v":0}]
[null,null,null,null,null,0,0,0,0,0,0,"",null,{"$f":"IF(AND(W7=\"Estancias doctorales\",N96>2000),\"Su presupuesto excede el límite permitido para su motivo de viaje\",IF(AND(W7=\"Estancias de Investigación\",N96>3000),\"Su presupuesto excede el límite permitido para su motivo de viaje\",IF(AND(W7=\"Otros: Congresos y/o eventos\",N96>3000),\"Su presupuesto excede el límite permitido para su motivo de viaje\",\"\")))","v":""}]
[null,null,null,null,null,0,0,0,0,0,0,"",null,{"$f":"IF(AND(W7=\"Estancias doctorales\",N95>1000),\"Su presupuesto excede el límite permitido para su motivo de viaje\",IF(AND(W7=\"Estancias de Investigación\",N95>1500),\"Su presupuesto excede el límite permitido para su motivo de viaje\",IF(AND(W7=\"Otros: Congresos y/o eventos\",N95>3000),\"Su presupuesto excede el límite permitido para su motivo de viaje\",\"\")))","v":""}]
[null,null,null,null,null,0,0,0,0,0,0,""]
[null,null,null,null,null,0,0,0,0,0,0,""]
[null,null,null,null,null,0,0,0,0,0,0,""]
[null,null,null,null,null,0,0,0,0,0,0,""]
[]
[null,"Gastos Séptimo Viaje ",null,null,null,null,null,"Valor total para 2024","Valor total para 2025","Valor total para 2026","Valor total para 2027"]
[null,"Descripción del Gasto ","Categoria ","Fuente de Financiamiento ","Cantidad ","Costo Unitario ","Total ","Año 2025","Año 2026","Año 2027","Año 2028",null,"Total viajes Técnicos "]
[null,null,null,"UDLA",null,0,{"$f":"+E106*F106","v":0},0,0,null,0,{"$f":"IF(SUM(G106)=SUM(H106:K106),\"\",\"El total y los valores totales por años no cuadran\")","v":""},{"$f":"IF(SUM(G106:G116)=SUM(H106:K116),SUM(H106:K116), \"Total y sumatoria de años no cuadra\")","v":0}]
[null,null,null,"Externo",null,0,0,0,0,0,0,{"$f":"IF(SUM(G107)=SUM(H107:K107),\"\",\"El total y los valores totales por años no cuadran\")","v":""}]
[null,null,null,null,null,0,0,0,0,0,0,""]
[null,null,null,null,null,0,0,0,0,0,0,"","Fondos Udla",{"$f":"SUMIF(D106:D116,\"UDLA\",G106:G116)","v":0}]
[null,null,null,null,null,0,0,0,0,0,0,"","Fondos Externo",{"$f":"SUMIF(D106:D116,\"Externo\",G106:G116)","v":0}]
[null,null,null,null,null,0,0,0,0,0,0,"",null,{"$f":"IF(AND(AA7=\"Estancias doctorales\",N110>2000),\"Su presupuesto excede el límite permitido para su motivo de viaje\",IF(AND(AA7=\"Estancias de Investigación\",N110>3000),\"Su presupuesto excede el límite permitido para su motivo de viaje\",IF(AND(AA7=\"Otros: Congresos y/o eventos\",N110>3000),\"Su presupuesto excede el límite permitido para su motivo de viaje\",\"\")))","v":""}]
[null,null,null,null,null,0,0,0,0,0,0,"",null,{"$f":"IF(AND(AA7=\"Estancias doctorales\",N109>1000),\"Su presupuesto excede el límite permitido para su motivo de viaje\",IF(AND(AA7=\"Estancias de Investigación\",N109>1500),\"Su presupuesto excede el límite permitido para su motivo de viaje\",IF(AND(AA7=\"Otros: Congresos y/o eventos\",N109>3000),\"Su presupuesto excede el límite permitido para su motivo de viaje\",\"\")))","v":""}]
[null,null,null,null,null,0,0,0,0,0,0,""]
[null,null,null,null,null,0,0,0,0,0,0,""]
[null,null,null,null,null,0,0,0,0,0,0,""]
[null,null,null,null,null,0,0,0,0,0,0,""]
[]
[null,"Gastos Octavo Viaje ",null,null,null,null,null,"Valor total para 2024","Valor total para 2025","Valor total para 2026","Valor total para 2027"]
[null,"Descripción del Gasto ","Categoria ","Fuente de Financiamiento ","Cantidad ","Costo Unitario ","Total ","Año 2025","Año 2026","Año 2027","Año 2028",null,"Total viajes Técnicos "]
[null,null,null,"UDLA",null,0,{"$f":"+E120*F120","v":0},0,0,null,0,{"$f":"IF(SUM(G120)=SUM(H120:K120),\"\",\"El total y los valores totales por años no cuadran\")","v":""},{"$f":"IF(SUM(G120:G130)=SUM(H120:K130),SUM(H120:K130), \"Total y sumatoria de años no cuadra\")","v":0}]
[null,null,null,"Externo",null,0,0,0,0,0,0,{"$f":"IF(SUM(G121)=SUM(H121:K121),\"\",\"El total y los valores totales por años no cuadran\")","v":""}]
[null,null,null,null,null,0,0,0,0,0,0,""]
[null,null,null,null,null,0,0,0,0,0,0,"","Fondos Udla",{"$f":"SUMIF(D120:D130,\"UDLA\",G120:G130)","v":0}]
[null,null,null,null,null,0,0,0,0,0,0,"","Fondos Externo",{"$f":"SUMIF(D120:D130,\"Externo\",G120:G130)","v":0}]
[null,null,null,null,null,0,0,0,0,0,0,"",null,{"$f":"IF(AND(AE7=\"Estancias doctorales\",N124>2000),\"Su presupuesto excede el límite permitido para su motivo de viaje\",IF(AND(AE7=\"Estancias de Investigación\",N124>3000),\"Su presupuesto excede el límite permitido para su motivo de viaje\",IF(AND(AE7=\"Otros: Congresos y/o eventos\",N124>3000),\"Su presupuesto excede el límite permitido para su motivo de viaje\",\"\")))","v":""}]
[null,null,null,null,null,0,0,0,0,0,0,"",null,{"$f":"IF(AND(AE7=\"Estancias doctorales\",N123>1000),\"Su presupuesto excede el límite permitido para su motivo de viaje\",IF(AND(AE7=\"Estancias de Investigación\",N123>1500),\"Su presupuesto excede el límite permitido para su motivo de viaje\",IF(AND(AE7=\"Otros: Congresos y/o eventos\",N123>3000),\"Su presupuesto excede el límite permitido para su motivo de viaje\",\"\")))","v":""}]
[null,null,null,null,null,0,0,0,0,0,0,""]
[null,null,null,null,null,0,0,0,0,0,0,""]
[null,null,null,null,null,0,0,0,0,0,0,""]
[null,null,null,null,null,0,0,0,0,0,0,""]
[]
[null,"Gastos Noveno Viaje ",null,null,null,null,null,"Valor total para 2024","Valor total para 2025","Valor total para 2026","Valor total para 2027"]
[null,"Descripción del Gasto ","Categoria ","Fuente de Financiamiento ","Cantidad ","Costo Unitario ","Total ","Año 2025","Año 2026","Año 2027","Año 2028",null,"Total viajes Técnicos "]
[null,null,null,"UDLA",null,0,{"$f":"+E134*F134","v":0},0,0,null,0,{"$f":"IF(SUM(G134)=SUM(H134:K134),\"\",\"El total y los valores totales por años no cuadran\")","v":""},{"$f":"IF(SUM(G134:G144)=SUM(H134:K144),SUM(H134:K144), \"Total y sumatoria de años no cuadra\")","v":0}]
[null,null,null,"Externo",null,0,0,0,0,0,0,{"$f":"IF(SUM(G135)=SUM(H135:K135),\"\",\"El total y los valores totales por años no cuadran\")","v":""}]
[null,null,null,null,null,0,0,0,0,0,0,""]
[null,null,null,null,null,0,0,0,0,0,0,"","Fondos Udla",{"$f":"SUMIF(D134:D144,\"UDLA\",G134:G144)","v":0}]
[null,null,null,null,null,0,0,0,0,0,0,"","Fondos Externo",{"$f":"SUMIF(D134:D144,\"Externo\",G134:G144)","v":0}]
[null,null,null,null,null,0,0,0,0,0,0,"",null,{"$f":"IF(AND(AI7=\"Estancias doctorales\",N138>2000),\"Su presupuesto excede el límite permitido para su motivo de viaje\",IF(AND(AI7=\"Estancias de Investigación\",N138>3000),\"Su presupuesto excede el límite permitido para su motivo de viaje\",IF(AND(AI7=\"Otros: Congresos y/o eventos\",N138>3000),\"Su presupuesto excede el límite permitido para su motivo de viaje\",\"\")))","v":""}]
[null,null,null,null,null,0,0,0,0,0,0,"",null,{"$f":"IF(AND(AI7=\"Estancias doctorales\",N137>1000),\"Su presupuesto excede el límite permitido para su motivo de viaje\",IF(AND(AI7=\"Estancias de Investigación\",N137>1500),\"Su presupuesto excede el límite permitido para su motivo de viaje\",IF(AND(AI7=\"Otros: Congresos y/o eventos\",N137>3000),\"Su presupuesto excede el límite permitido para su motivo de viaje\",\"\")))","v":""}]
[null,null,null,null,null,0,0,0,0,0,0,""]
[null,null,null,null,null,0,0,0,0,0,0,""]
[null,null,null,null,null,0,0,0,0,0,0,""]
[null,null,null,null,null,0,0,0,0,0,0,""]
[]
[null,"Gastos Décimo Viaje ",null,null,null,null,null,"Valor total para 2024","Valor total para 2025","Valor total para 2026","Valor total para 2027"]
[null,"Descripción del Gasto ","Categoria ","Fuente de Financiamiento ","Cantidad ","Costo Unitario ","Total ","Año 2025","Año 2026","Año 2027","Año 2028",null,"Total viajes Técnicos "]
[null,null,null,"UDLA",null,0,{"$f":"+E148*F148","v":0},0,null,null,0,null,{"$f":"IF(SUM(G148:G158)=SUM(H148:K158),SUM(H148:K158), \"Total y sumatoria de años no cuadra\")","v":0}]
[null,null,null,"Externo",null,0,{"$f":"+E149*F149","v":0},0,0,0,0]
[null,null,null,null,null,0,0,0,0,0,0]
[null,null,null,null,null,0,0,0,0,0,0,null,"Fondos Udla",{"$f":"SUMIF(D148:D158,\"UDLA\",G148:G158)","v":0}]
[null,null,null,null,null,0,0,0,0,0,0,null,"Fondos Externo",{"$f":"SUMIF(D148:D158,\"Externo\",G148:G158)","v":0}]
[null,null,null,null,null,0,0,0,0,0,0,null,null,{"$f":"IF(AND(AM7=\"Estancias doctorales\",N152>2000),\"Su presupuesto excede el límite permitido para su motivo de viaje\",IF(AND(AM7=\"Estancias de Investigación\",N152>3000),\"Su presupuesto excede el límite permitido para su motivo de viaje\",IF(AND(AM7=\"Otros: Congresos y/o eventos\",N152>3000),\"Su presupuesto excede el límite permitido para su motivo de viaje\",\"\")))","v":""}]
[null,null,null,null,null,0,0,0,0,0,0,null,null,{"$f":"IF(AND(AM7=\"Estancias doctorales\",N151>1000),\"Su presupuesto excede el límite permitido para su motivo de viaje\",IF(AND(AM7=\"Estancias de Investigación\",N151>1500),\"Su presupuesto excede el límite permitido para su motivo de viaje\",IF(AND(AM7=\"Otros: Congresos y/o eventos\",N151>3000),\"Su presupuesto excede el límite permitido para su motivo de viaje\",\"\")))","v":""}]
[null,null,null,null,null,0,0,0,0,0,0]
[null,null,null,null,null,0,0,0,0,0,0]
[null,null,null,null,null,0,0,0,0,0,0]
[null,null,null,null,null,0,0,0,0,0,0]

{"sheet":"6.Precios Servicios Internos","index":7,"n_rows":26,"n_cols":15,"rows_kept":26,"cut":false,"hidden":false,"merged":[[18,9,18,10],[0,0,0,13],[2,0,3,0],[2,1,2,7],[2,9,3,9],[1,0,1,7],[2,10,2,14],[1,9,1,14]]}
["Tabla Resumen de Precios (Servicios Internos)"]
["Precio por muestras",null,null,null,null,null,null,null,null,"Precio por muestras"]
["Servicio","Número Mínimo de Muestras",null,null,null,null,null,null,null,"Servicio","Número Mínimo de Muestras"]
[null,10,20,30,50,100,174,240,null,null,1,10,50,100,240]
["Determinación de Vitamina C (HPLC)",11.24,null,null,7.36,5.73,null,null,null,"Determinación de Vitamina C (HPLC)",null,11.58,6.84]
["Determinación de Teobromina y Cafeína (HPLC)",5.23,null,null,4.58,null,null,null,null,"Determinación de Teobromina y Cafeína (HPLC)",5.3]
["Determinación de ácidos orgánicos (HPLC)",5.6,null,null,null,4.4000000000000004,null,null,null,"Determinación de ácidos orgánicos (HPLC)",4.8499999999999996,4.3099999999999996]
["Determinación de carotenoides (HPLC)",null,null,30.79,23.32,17.71,null,null,null,"Determinación de carotenoides (HPLC)",7.63]
["Determinación de aminoácidos (HPLC)",null,5.92,null,5.12,4.8600000000000003,null,null,null,"Determinación de aminoácidos (HPLC)",5.46,4.7]
["Determinación de ac. Fenólicos (HPLC)",5.92,null,null,5.3,5.08,null,null,null,"Determinación de ac. Fenólicos (HPLC)",5.71,3.52]
["Determinación de vitaminas liposolubles (HPLC)",7.22,null,null,6.07,5.93,null,null,null,"Determinación de vitaminas liposolubles (HPLC)",6.16,5.8]
["ICP 33 Elementos",null,null,null,null,null,null,8.3800000000000008,null,"ICP-OES 23 Elementos",8.92]
["ICP Mercurio (Plasma)",null,null,null,null,null,null,8.1999999999999993,null,"ICP-OES de dos regiones",9.7100000000000009]
["ICP Mercurio (Hidruros)",null,null,null,null,null,null,9.98,null,"ICP-OES Mercurio (Plasma)",8.92]
["Analizador Elemental (Suelos y Hojas)",null,null,null,null,null,2.34,null,null,"ICP-OES Mercurio (Hidruros)",12.44]
["Analizador Elemental (Aguas)",null,null,null,null,null,2.35,null,null,"HPLC-MS/MS (Metabolómica)",7]
["Analizador Elemental (Tamizado y Molida)",null,null,null,null,null,0.59,null,null,"HPLC-MS/MS (Metabolómica + SI)",8.7200000000000006]
["Purificación (Secuenciación)",0.26]
["Secuenciación Sanger (1 sentido)",3.86,null,null,null,null,null,null,null,"Precio por adición de materiales de referencias o puntos de calibración en el servicio externo de ICP-OES"]
["HPLC-MS/MS (Metabolómica)",7,null,null,null,null,null,null,null,"Material de Referencia","Precios"]
["HPLC-MS/MS (Metabolómica + SI)",8.7200000000000006,null,null,null,null,null,null,null,"Adición de material de referencia Animal Tissue (ERM-BB422)",23.1]
[null,null,null,null,null,null,null,null,null,"Adición de material de referencia Pine needles (1575a)",8.33]
[null,null,null,null,null,null,null,null,null,"Adición de material de referencia Urban Particulate matter (1648a)",93.56]
[null,null,null,null,null,null,null,null,null,"Adición de material de referencia Aguas (BCR-505)",19.850000000000001]
[null,null,null,null,null,null,null,null,null,"Adición de material de referencia de Suelos SQC-001",10.15]
[null,null,null,null,null,null,null,null,null,"Adición de puntos de calibración (costos por puntos)",4.43]

{"sheet":"7. Política de Viajes","index":8,"n_rows":20,"n_cols":9,"rows_kept":20,"cut":false,"hidden":false,"merged":[[14,3,14,6],[9,4,9,7],[2,4,2,5],[10,4,10,7],[3,8,3,9],[4,8,4,9],[5,8,5,9],[6,8,6,9],[7,8,7,9],[8,8,8,9],[9,8,9,9],[10,8,10,9],[8,6,8,7],[2,8,2,9],[2,6,2,7],[4,6,4,7],[6,4,6,5],[7,4,7,5],[8,4,8,5],[4,4,4,5],[1,3,1,9],[3,4,3,5],[5,4,5,5],[5,6,5,7],[6,6,7,7],[3,6,3,7]]}
[]
[null,null,null,"Anticipos / Reembolsos de Viaje"]
[null,null,null,"Rubros ","Nacionales ",null,"Internacionales ",null,"Gastos Administrativos \n(Dentro de la Ciudad)"]
[null,null,null,"Desayuno ","$10.00 (cuando no esté incluido en hospedaje)",null,"$15.00 (cuando no esté incluido en hospedaje)",null,5]
[null,null,null,"Almuerzo",12,null,20,null,8]
[null,null,null,"Cena",12,null,20,null,8]
[null,null,null,"Reembolso por gasolina","$0.08 por kilómetro",null,"Se deberá soportar los valores de taxis autorizados con recibos",null,"N/A"]
[null,null,null,"Taxi ","Autorizado por los medios oficiales de UDLA",null,null,null,"Autorizado por los medios oficiales UDLA"]
[null,null,null,"Noche hospedaje","$75.00 / Previa autorización ",null,"Previa autorización ",null,"N/A"]
[null,null,null,"Gastos sin soporte","Se aceptarán gastos sin soporte con comprobantes de venta válidos hasta el 30% del monto total",null,null,null,"N/A"]
[null,null,null,"Pasajes aéreos","Previa autorización por la herramienta ARGO",null,null,null,"N/A"]
[]
[]
[]
[null,null,null,"MONTOS MÁXIMOS PERTIMIDOS PARA VIAJES"]
[null,null,null,null,null,"CON","SIN"]
[null,null,null,"TIPO DE VIAJE",null,"FINANCIAMIENTO EXTERNO","FINANCIAMIENTO EXTERNO"]
[null,null,null,"ESTANCIAS DOCTORALES",null,2000,1000]
[null,null,null,"ESTANCIAS DE INVESTIGACIÓN",null,3000,1500]
[null,null,null,"EVENTOS O CONGRESOS",null,3000,3000]

{"sheet":"Parámetros","index":9,"n_rows":20,"n_cols":13,"rows_kept":20,"cut":false,"hidden":true,"merged":[]}
[]
[null,"Tipos de Gasto",null,"Facultades",null,"Detalle","Valor"]
[null,null,null,"Facultad de Medicina",null,"Técnico docente (Tercer nivel)",13.018125000000001,null,"Asistente (1) ","10 (Si se publica en Scopus)",1,null,"Uno (1)"]
[null,"Servicios Profesionales",null,"Escuela de Ciencias Políticas y Relaciones Internacionales",null,"Docentes (Maestría)",16.620625,null,"Poster (5) ","5 (Si se publica en otra revista)",2,null,"Dos (2)"]
[null,"Equipos",null,"Escuela de Gastronomía",null,"Docentes (Phd)",19.649999999999999,null,"Presentación oral (8) ","0 (No se publica nada)",3,null,"Tres (3)"]
[null,"Gastos de Proyecto - Otros Gastos",null,"Facultad de Odontología",null,"Inicial 1",22.964507575757576,null,"Charla magistral (10) ",null,4,null,"Cuatro (4)"]
[null,"Servicios de Laboratorio",null,"Escuela de Música",null,"Inicial 2",23.784668560606061,null,null,null,5,null,"Cinco (5)"]
[null,"Insumos",null,"Facultad de Arquitectura y Diseño",null,"Inicial 3",24.604829545454546,null,null,null,6,null,"Seis (6)"]
[null,null,null,"Facultad de Derecho",null,"Asociado 1",24.61303115530303,null,null,null,7,null,"Siete (7)"]
[null,null,null,"Facultad de Ciencias de la Salud",null,"Asociado 2",27.889574289772732,null,null,null,8,null,"Ocho (8)"]
[null,null,null,"Facultad de Comunicación y Artes Audiovisuales",null,"Asociado 3",31.166117424242422,null,null,null,9,null,"Nueve (9)"]
[null,null,null,"Facultad de Ciencias Económicas y Administrativas",null,"Senior 1",31.17431903409091,null,null,null,10,null,"Diez (10)"]
[null,null,null,"Facultad de Ingeniería y Ciencias Aplicadas",null,"Senior 2",33.630701183712127,null,null,null,null,null,"Once (11)"]
[null,null,null,"Ingeniería en Tecnologías de la Información",null,"Senior 3",36.087083333333332,null,null,null,null,null,"Doce (12)"]
[null,null,null,"Escuela de Psicología y Educación",null,"Investigador puro ",36.299999999999997,null,null,null,null,null,"Trece (13)"]
[null,null,null,"Dirección de investigación y vinculación",null,null,null,null,null,null,null,null,"Catorce (14)"]
[null,null,null,"EDN",null,null,null,null,null,null,null,null,"Quince (15)"]
[null,null,null,"Facultad de Posgrados"]
[null,null,null,"Facultad de formación general"]
[null,null,null,"Otras"]

{"sheet":"7, Viajes técnicos","index":10,"n_rows":52,"n_cols":12,"rows_kept":52,"cut":false,"hidden":true,"merged":[[15,1,15,6],[12,2,12,4],[11,2,11,4],[1,1,1,4],[2,1,2,4],[10,2,10,4],[7,2,7,4],[9,2,9,4],[4,2,4,4],[8,2,8,4],[6,2,6,4],[3,2,3,4],[5,2,5,4],[10,9,10,10],[10,11,10,12],[26,11,26,16],[24,11,24,12],[25,11,25,12]]}
[]
[null,"Información General Viajes Técnicos "]
[null,"Proyecto de Investigación # Convocatoria"]
[null,"¿Qué tipo de viaje va a realizar?","Nacional"]
[null,"Motivo del Viaje (i): "]
[null,"Motivo del Viaje (N): "]
[null,"Requiere boleto de avión ","Si"]
[null,"Destino/os"]
[null,"¿Cuántas veces se va a realizar el viaje?",2]
[null,"Explique la necesidad de este viaje para la ejecución el proyecto"]
[null,"¿Cuáles son los riesgos y posibles consecuencias para la UDLA si no se ejecuta este viaje en términos de cumplimiento de los objetivos del proyecto, plazos, relaciones institucionales y oportunidades de financiamiento futuro?"]
[null,"Beneficios para la UDLA en términos internacionales y financieros en caso de ejecutarse con éxito el viaje"]
[null,"Congreso (Si aplica)","(Nombre del Congreso)"]
[]
[]
[null,"             Detalle presupuestario de Viajes técnicos "]
[null,"Años","Transporte ","Alojamiento ","Alimentacion ","Gastos Administrativos","Total"]
[null,2024,0,0,0,0,{"$f":"SUM(C18:F18)","v":0}]
[null,2025,0,0,0,0,{"$f":"SUM(C19:F19)","v":0}]
[null,2026,0,0,0,0,{"$f":"SUM(C20:F20)","v":0}]
[null,2027,0,0,0,0,{"$f":"SUM(C21:F21)","v":0}]
[null,"Total Presupuesto  para Viajes Técnicos General",{"$f":"SUM(C18:C21)","v":0},{"$f":"SUM(D18:D21)","v":0},{"$f":"SUM(E18:E21)","v":0},{"$f":"SUM(F18:F21)","v":0},{"$f":"SUM(G18:G21)","v":0}]
[]
[null,null,null,null,null,null,null,"Valor total para 2024","Valor total para 2025","Valor total para 2026","Valor total para 2027"]
[null,"Descripción del Gasto ","Categoria ","Fuente de Financiamiento ","Cantidad ","Costo Unitario ","Total ","Año 2024","Año 2025","Año 2026","Año 2027","Total viajes Técnicos "]
[null,null,null,null,null,0,{"$f":"+E26*F26","v":0},0,0,null,0,{"$f":"IF(SUM(H26:K36)<=G22,SUM(H26:K36),\"Excediste el valor presupuestado\")","v":0}]
[null,null,null,null,null,0,0,0,0,0,0,{"$f":"IF(SUM(G26:G36)=SUM(H26:K36),\"\",\"Los valores de la Columna H y los valores totales por años no cuadran\")","v":""}]
[null,null,null,null,null,0,0,0,0,0,0]
[null,null,null,null,null,0,0,0,0,0,0]
[null,null,null,null,null,0,0,0,0,0,0]
[null,null,null,null,null,0,0,0,0,0,0]
[null,null,null,null,null,0,0,0,0,0,0]
[null,null,null,null,null,0,0,0,0,0,0]
[null,null,null,null,null,0,0,0,0,0,0]
[null,null,null,null,null,0,0,0,0,0,0]
[null,null,null,null,null,0,0,0,0,0,0]
[]
[]
[]
[]
[]
[]
[]
[]
[]
[]
[]
[]
[]
[]
[null,null,null,"UDLA"]
[null,null,null,"Externo"]

{"sheet":"Hoja3","index":11,"n_rows":12,"n_cols":8,"rows_kept":12,"cut":false,"hidden":true,"merged":[]}
[]
[]
[null,null,"Si","Internacional","Salida de Campo","Estancias doctorales",null,"Uno (1)"]
[null,null,"No","Nacional","Otros: Congresos y/o eventos","Estancias de investigación",null,"Dos (2)"]
[null,null,null,null,null,"Otros: Congresos y/o eventos",null,"Tres (3)"]
[null,null,null,null,null,null,null,"Cuatro (4)"]
[null,null,"UDLA",null,null,null,null,"Cinco (5)"]
[null,null,"Externo",null,null,null,null,"Seis (6)"]
[null,null,null,null,null,null,null,"Siete (7)"]
[null,null,null,null,null,null,null,"Ocho (8)"]
[null,null,null,null,null,null,null,"Nueve (9)"]
[null,null,null,null,null,null,null,"Diez (10)"]